Workbook

Sheet LOS Range
C3: Friis-Equation and 2-Ray Ground Reflection Model
C5: Antenna locations (height over surface) | D5: Tx: | E5: 1 | F5: Rx: | G5: 1 | I5: m
C6: Maximum LOS based on antenna heights: | H6: =(SQRT( 2*H_1*6365000+ POWER(H_1,2)) + SQRT( 2*H_2*6365000+POWER(H_2,2 ))) / 1000 -> 7.13582539 | I6: km
C8: Frequency (region)¹: | D8: 868 MHz | E8: =VLOOKUP(D8,Calc!BR19:BT28,3,0) -> High-band Sub-1GHz, Europe, Africa | H8: =VLOOKUP(D8,Calc!BR19:BS28,2,0) -> 868 | I8: MHz
C9: Antenna position: | D9: Vertical | I9: -
C11: Tx conducted output power: | D11: 14 | I11: dBm
C12: Mean Effecitive Gain (MEG) of Tx antenna: | D12: -1 dB fixed gain | H12: =VLOOKUP(D12,Calc!BJ19:BK33,2,FALSE) -> -1 | I12: dBi
C13: Mean Effecitive Gain (MEG) of Rx antenna: | D13: -1 dB fixed gain | H13: =VLOOKUP(D13,Calc!BJ19:BK33,2,FALSE) -> -1 | I13: dBi
C15: Select surface condition: | D15: Ground (default) | H15: =VLOOKUP(D15,Calc!BG19:BH26,2,FALSE) -> 18
C17: Jammer / Interference (at antenna port): | D17: No interference | H17: =VLOOKUP(D17,Calc!BO19:BP32,2,0) -> -130 | I17: dBm
C18: Enviroment Noise Floor Interference (NF): | D18: -120 | H18: =VLOOKUP(D18,Calc!BZ19:CA34,2,0) -> -120 | I18: dBm
C20: Select chip and datarate (sensitivity level): | D20: CC13xx - 50 kbps, 802.15.4g, Sub-1 GHz | H20: =VLOOKUP(D20,Calc!AJ19:AK62,2,FALSE) -> -110 | I20: dBm
C21: Jammer/Blocking level (fc +/- 10MHz): | H21: =VLOOKUP(chip,Calc!AJ19:AL83,3,0) -> 76 | I21: dB
C22: Sensitivity level without interference: | H22: =IF(H18+H26+6>index+H26,H18+H26+6,index+H26) -> -93.4 | I22: dBm
C23: Sensitivity level with interference: | H23: =IF(dist-VLOOKUP(chip,Calc!AJ19:AL83,3,0)+H26>H22,dist-$H$21+H26,$H$22) -> -93.4 | I23: dBm
C25: Attenuation between Rx and Tx:
C26: Link margin | D26: Minimum Expected Range (default) | H26: =Calc!BE23 -> 16.6 | I26: dB
C27: Absorbtion material 1: | D27: None (LOS)
C28: Absorbtion material 2: | D28: None (LOS)
C29: Absorbtion material 3: | D29: None (LOS) | J29: For more info concerning our wireless devices, visit the E2E community
C31: Link budget: | J31: =-(index-Pt)+Gt+Gr -> 122 | K31: dB | L31: Achieving Optimum Range | O31: Range Debug Check List
D32: With Interference | F32: Without Interference | G32: Friis (LOS) | J32: =VLOOKUP(G32,Calc!BG29:BH33,2,FALSE) -> 0 | K32: S/m
C33: Realistic range expectation: | D33: =IF(selDist=Calc!$BO$19,F33,(MIN(VLOOKUP(Calc!AQ10028,Calc!AO10028:AP20028,2,FALSE),F33,H6*1000))) -> 783.8051539 | F33: =MIN(VLOOKUP(Calc!AQ19,Calc!AO19:AP10019,2,FALSE),H6*1000) -> 783.8051539 | G33: =(1/(4*PI()))*SQRT(((10^((D11-30)/10))*(10^(Gt/10))*(10^(Gr/10))*(10^((SQRT(freq*1000000*0.00000125663753*J32*3.14)*-1)/10))*(299790000/(freq*1000000))*(299790000/(freq*1000000))/(10^(H23/10))*1000)) -> 5117.85 | L33: CC-Antenna-DK2 | O33: Antenna Selection Guide
C34: 1. To be able to enter custom frequency, please enable marcos. | Q34: Rev 1.20

Sheet Calc (hidden)
B2: Constants | AD2: =IF(index=1,"CC1100, 315MHz, 1.2kbaud sensitivity = -111dBm","") -> 
B3: Speed of light in vaccuum | E3: 299972458 | F3: [m/s] | AD3: =IF(index=2,"CC1100, 915MHz, 500kbaud sensitivity = -87dBm","") -> 
B4: Scale of graph | E4: =1.5*(0.299792458/(4*PI()*freq/1000))* SQRT((10^((Pt-30)/10)*Gr_m*Gt_m)/(10^(('LOS Range'!H22-30)/10))) -> 7676.837943 | F4: m | AD4: =IF(index=3,"CC2520, 2.4GHz, sensitivity = -98dBm","") -> 
E5: =IF(1.5*(0.299792458/(4*PI()*freq/1000))*SQRT((10^((Pt-30)/10)*Gr_m*Gt_m)/(10^((BR16-30)/10)))<D,1.5*(0.299792458/(4*PI()*freq/1000))*SQRT((10^((Pt-30)/10)*Gr_m*Gt_m)/(10^((BR16-30)/10))),D) ->  | F5: m
B6: Variables | AD6: =IF(index=4,"CC2430, 2.4GHz, sensitivity = -92dBm","") -> 
B7: Wave lenght (Lambda) | E7: =cv/(freq*1000000) -> 0.3455903894 | F7: [m] | P7: With Interference | Q7: A10025 | AD7: =IF(index=5,"CC2500, 2.4GHz, 2.4kbaud sensitivity = -104dBm","") -> 
B8: Power transmitted (Pt_w) | E8: =10^(Pt/10)/1000 -> 0.02511886432 | F8: [Watt] | I8: =Pt -> 14 | AD8: =IF(index=6,"CC1120@1.2kbps = -123dBm","") -> 
AJ9: LRM
B10: Transmitting antenna gain (Gt_m) | E10: =10^(Gt/10) -> 0.7943282347 | F10: [ggr]
B11: Receiving antenna gain (Gr_m) | E11: =10^(Gr/10) -> 0.7943282347 | F11: [ggr] | AJ11: Bluetooth | AL11: Approximated | AS11: =VLOOKUP(Calc!AQ19,Calc!AO19:AP10019,2,FALSE) -> 783.8051539
B13: H_2 Compenstaion for initial power error (H_3) | F13: =H_2+0.0275 -> 1.0275 | G13: OK for 868 MHz
I14: Reflection coefficient | L14: Cos(Phase difference) | O14: Energy | S14: Total Energy | V14: Total Energy
E15: Travelled distance | I15: Polarisation | O15: Direct | P15: Reflected wave | AO15: Difference between | AT15: Difference between | BR15: =index+'LOS Range'!H26 -> -93.4
S16: Direct+Reflected | W16: Direct+Reflected | Z16: Plot vector | AC16: =index -> -110 | AO16: ground model | AT16: Friis and practical | AU16: plot step | BR16: =IF(selDist=BO19,ERROR.TYPE(7),'LOS Range'!H23) -> 
B17: index | C17: plot step | D17: phi | E17: direct wave | F17: reflected wave | G17: difference | I17: Vertical | J17: Horisontal | L17: Vertical | M17: Horisontal | O17: wave | P17: Vertical | Q17: Horisontal | S17: Vertical | T17: Horisontal | V17: Friis | W17: Vertical | X17: Horisontal | Z17: =IF(pol="Horizontal","Ground model HP","Ground model VP") -> Ground model VP | AD17: Conducted Sensitivity | AE17: Practical Sensitivity Level | AL17: 50 | AO17: curve and practical | AP17: plot step
B18: [0-10000] | C18: [m] | E18: [m] | F18: [m] | G18: [m] | O18: [watt] | P18: [watt] | Q18: [watt] | S18: [watt] | T18: [watt] | V18: [dBm] | W18: [dBm] | X18: [dBm] | Z18: [dBm] | AD18: [dBm] | AE18: [dBm] | AJ18: Devices | AK18: Sensitvity | AL18: +/- 10 MHz | AO18: sensitivity level | AP18: [m] | AQ18: Smallest diff | AT18: sensitivity level | AU18: [m] | AV18: Smallest diff | AY18: Material | AZ18: dB | BB18: Material | BC18: dB | BE18: Summary | BG18: Dielectric constant | BJ18: Transmitting antenna | BK18: Mean Effective Gain | BL18: peak gain (dBi) | BM18: Directivity (dBi) | BO18: Interference | BR18: Frequencies | BX18: Polarity | BZ18: Environmental noise
B19: 0 | C19: 1e-05 | D19: =ATAN((H_1+H_3)/C19) -> 1.570791395 | E19: =SQRT(ABS(H_1-H_3)^2+C19^2) -> 0.02750000182 | F19: =SQRT(C19^2+(H_1+H_3)^2) -> 2.0275 | G19: =F19-E19 -> 1.999999998 | I19: =(er*SIN(D19)-SQRT(er-COS(D19)^2))/(er*SIN(D19)+SQRT(er-COS(D19)^2)) -> 0.6185128603 | J19: =(SIN(D19)-SQRT(er-COS(D19)^2))/(SIN(D19)+SQRT(er-COS(D19)^2)) -> -0.6185128603 | L19: =COS(G19*2*PI()/lambda)*SIGN(I19) -> 0.2315996365 | M19: =COS(G19*2*PI()/lambda)*SIGN(J19) -> -0.2315996365 | O19: =Pt_w*Gt_m*Gr_m*lambda^2/((4*PI()*E19)^2) -> 0.01585032385 | P19: =Pt_w*Gt_m*Gr_m*lambda^2/((4*PI()*F19)^2)*ABS(I19) -> 1.803559994e-06 | Q19: =Pt_w*Gt_m*Gr_m*lambda^2/((4*PI()*F19)^2)*ABS(J19) -> 1.803559994e-06 | S19: =O19+L19*P19 -> 0.01585074155 | T19: =O19+M19*Q19 -> 0.01584990615 | V19: =10*LOG10(O19*1000) -> 12.0003814 | W19: =10*LOG10(S19*1000) -> 12.00049585 | X19: 12.00026695 | Z19: =IF(pol="Horizontal",X19,W19) -> 12.00049585 | AD19: =(AC16) -> -110 | AE19: =IF('LOS Range'!$H$18>index+$H$25,'LOS Range'!$H$22,AD19+'LOS Range'!$H$26) -> -93.4 | AJ19: Custom | AK19: =AK17 -> 0 | AL19: =AL17 -> 50 | AO19: =ABS(AE19-Z19) -> 105.4004958 | AP19: 1e-05 | AQ19: =SMALL($AO19:$AO10019,1) -> 0.004359732643 | AT19: =ABS(AE19-V19) -> 105.4003814 | AU19: 1e-05 | AV19: =SMALL($AT19:$AT10019,1) -> 0.0004304176371 | AY19: Minimum Expected Range (default) | AZ19: =0.15*-(index-Pt)+Gt+Gr -> 16.6 | BB19: None (LOS) | BC19: 0 | BE19: =VLOOKUP('LOS Range'!D26,AY19:AZ21,2,FALSE) -> 16.6 | BG19: Ground (default) | BH19: 18 | BJ19: 100 % efficient antenna | BK19: =BL19-BM19 -> 0 | BL19: 2.1 | BM19: 2.1 | BO19: No interference | BP19: -130 | BR19: 169 MHz | BS19: 169 | BT19: Italy, Spain, France | BX19: Horizontal
B20: 1 | C20: =D/10000*B20 -> 0.7676837943 | D20: =ATAN((H_1+H_3)/C20) -> 1.208842047 | E20: =SQRT(ABS(H_1-H_3)^2+C20^2) -> 0.7681761894 | F20: =SQRT(C20^2+(H_1+H_3)^2) -> 2.16797017 | G20: =F20-E20 -> 1.399793981 | I20: =(er*SIN(D20)-SQRT(er-COS(D20)^2))/(er*SIN(D20)+SQRT(er-COS(D20)^2)) -> 0.5985256174 | J20: =(SIN(D20)-SQRT(er-COS(D20)^2))/(SIN(D20)+SQRT(er-COS(D20)^2)) -> -0.6377305533 | L20: =COS(G20*2*PI()/lambda)*SIGN(I20) -> 0.9501937933 | M20: =COS(G20*2*PI()/lambda)*SIGN(J20) -> -0.9501937933 | O20: =Pt_w*Gt_m*Gr_m*lambda^2/((4*PI()*E20)^2) -> 2.03133664e-05 | P20: =Pt_w*Gt_m*Gr_m*lambda^2/((4*PI()*F20)^2)*ABS(I20) -> 1.52643995e-06 | Q20: =Pt_w*Gt_m*Gr_m*lambda^2/((4*PI()*F20)^2)*ABS(J20) -> 1.626425613e-06 | S20: =O20+L20*P20 -> 2.176378016e-05 | T20: =O20+M20*Q20 -> 1.876794687e-05 | V20: =10*LOG10(O20*1000) -> -16.92218098 | W20: -16.6226567 | X20: -17.26583235 | Z20: -16.6226567 | AD20: =$AD$19 -> -110 | AE20: =IF('LOS Range'!$H$18>index+$H$25,'LOS Range'!$H$22,AD20+'LOS Range'!$H$26) -> -93.4 | AJ20: CC1120 CC1190 - 0.3 kbps (LRM), Sub-1 GHz | AK20: -130 | AL20: 91 | AO20: 76.7773433 | AP20: =D/10000*B20 -> 0.7676837943 | AT20: =ABS(AE20-V20) -> 76.47781902 | AU20: =D/10000*B20 -> 0.7676837943 | AY20: Maximum Expected Range | AZ20: =0.09*-(index-Pt)+Gt+Gr -> 9.16 | BB20: 7" Brick Wall | BC20: =IF(freq<500,3.5, (IF(freq<2000, 5.5, 7.5))) -> 5.5 | BE20: =VLOOKUP('LOS Range'!D27,BB19:BC29,2,FALSE) -> 0 | BG20: Water | BH20: 80 | BJ20: DN007 - 2.4 GHz (CC_Antenna_DK2_#11) | BK20: =BL20-BM20 -> -1.15 | BL20: 4.76 | BM20: 5.91 | BO20: -10 | BP20: -10 | BR20: 315 MHz | BS20: 315 | BT20: Low-band Sub-1GHz, US | BX20: Vertical | BZ20: -80 | CA20: -80
B21: =B20+1 -> 2 | C21: 1.535367589 | D21: =ATAN((H_1+H_3)/C21) -> 0.9226577963 | E21: =SQRT(ABS(H_1-H_3)^2+C21^2) -> 1.535613845 | F21: =SQRT(C21^2+(H_1+H_3)^2) -> 2.5432479 | G21: =F21-E21 -> 1.007634055 | I21: =(er*SIN(D21)-SQRT(er-COS(D21)^2))/(er*SIN(D21)+SQRT(er-COS(D21)^2)) -> 0.5472082492 | J21: =(SIN(D21)-SQRT(er-COS(D21)^2))/(SIN(D21)+SQRT(er-COS(D21)^2)) -> -0.6809044251 | L21: =COS(G21*2*PI()/lambda)*SIGN(I21) -> 0.8629372674 | M21: =COS(G21*2*PI()/lambda)*SIGN(J21) -> -0.8629372674 | O21: =Pt_w*Gt_m*Gr_m*lambda^2/((4*PI()*E21)^2) -> 5.083227499e-06 | P21: =Pt_w*Gt_m*Gr_m*lambda^2/((4*PI()*F21)^2)*ABS(I21) -> 1.014095444e-06 | Q21: =Pt_w*Gt_m*Gr_m*lambda^2/((4*PI()*F21)^2)*ABS(J21) -> 1.261863425e-06 | S21: =O21+L21*P21 -> 5.95832825e-06 | T21: =O21+M21*Q21 -> 3.994318523e-06 | V21: =10*LOG10(O21*1000) -> -22.93860453 | W21: -22.24875575 | X21: -23.98557306 | Z21: -22.24875575 | AD21: -110 | AE21: =IF('LOS Range'!$H$18>index+$H$25,'LOS Range'!$H$22,AD21+'LOS Range'!$H$26) -> -93.4 | AJ21: CC112x - 0.3 kbps CG, LRM - 4 kHz fdev | AK21: -127 | AL21: 91 | AO21: 71.15124425 | AP21: 1.535367589 | AT21: 70.46139547 | AU21: 1.535367589 | AY21: Link possible but with zero link margin | AZ21: 0 | BB21: 8" Concrete Wall | BC21: =IF(freq<500,21, (IF(freq<2000, 25, 32))) -> 25 | BE21: =VLOOKUP('LOS Range'!D28,BB19:BC29,2,FALSE) -> 0 | BG21: Soil / Sand, wet | BH21: 22.5 | BJ21: AN043 - 2.4 GHz (CC_Antenna_DK2_#2) | BK21: =BL21-BM21 -> -1.47 | BL21: 3.14 | BM21: 4.61 | BO21: -20 | BP21: -20 | BR21: 433 MHz | BS21: 433 | BT21: Low-band Sub-1GHz, “Global-ish” | BZ21: -85 | CA21: =CA20-5 -> -85
B22: =B21+1 -> 3 | C22: 2.303051383 | D22: =ATAN((H_1+H_3)/C22) -> 0.7218541983 | E22: =SQRT(ABS(H_1-H_3)^2+C22^2) -> 2.303215561 | F22: =SQRT(C22^2+(H_1+H_3)^2) -> 3.068354921 | G22: =F22-E22 -> 0.7651393598 | I22: =(er*SIN(D22)-SQRT(er-COS(D22)^2))/(er*SIN(D22)+SQRT(er-COS(D22)^2)) -> 0.4802995695 | J22: =(SIN(D22)-SQRT(er-COS(D22)^2))/(SIN(D22)+SQRT(er-COS(D22)^2)) -> -0.7267536258 | L22: =COS(G22*2*PI()/lambda)*SIGN(I22) -> 0.224231114 | M22: =COS(G22*2*PI()/lambda)*SIGN(J22) -> -0.224231114 | O22: =Pt_w*Gt_m*Gr_m*lambda^2/((4*PI()*E22)^2) -> 2.259614812e-06 | P22: =Pt_w*Gt_m*Gr_m*lambda^2/((4*PI()*F22)^2)*ABS(I22) -> 6.115114528e-07 | Q22: =Pt_w*Gt_m*Gr_m*lambda^2/((4*PI()*F22)^2)*ABS(J22) -> 9.252936995e-07 | S22: =O22+L22*P22 -> 2.396734706e-06 | T22: =O22+M22*Q22 -> 2.052135175e-06 | V22: =10*LOG10(O22*1000) -> -26.45965587 | W22: =10*LOG10(S22*1000) -> -26.20380035 | X22: =10*LOG10(T22*1000) -> -26.87794036 | Z22: -26.20380035 | AD22: -110 | AE22: =IF('LOS Range'!$H$18>index+$H$25,'LOS Range'!$H$22,AD22+'LOS Range'!$H$26) -> -93.4 | AJ22: CC112x / CC120x - 1.2 kbps 4 kHz fdev | AK22: -123 | AL22: 85 | AO22: 67.19619965 | AP22: 2.303051383 | AT22: 66.94034413 | AU22: 2.303051383 | BB22: 1/2" Dry Wall | BC22: =IF(freq<500,0.1, (IF(freq<2000, 0.3, 0.6))) -> 0.3 | BE22: =VLOOKUP('LOS Range'!D29,BB19:BC29,2,FALSE) -> 0 | BG22: Soil, loamy wet | BH22: 15 | BJ22: DN024 - 863-928 MHz (CC_Antenna_DK2_#9) | BK22: =BL22-BM22 -> -0.95 | BL22: 3.52 | BM22: 4.47 | BO22: -30 | BP22: -30 | BR22: 490 MHz | BS22: 490 | BT22: Low-band Sub-1GHz, China | BZ22: -90 | CA22: =CA21-5 -> -90
B23: 4 | C23: 3.070735177 | D23: 0.5835578118 | E23: 3.070858313 | F23: 3.679697104 | G23: 0.6088387912 | I23: 0.4090283656 | J23: -0.7660687693 | L23: 0.07366832 | M23: -0.07366832 | O23: 1.271112611e-06 | P23: 3.621036229e-07 | Q23: 6.78183471e-07 | S23: 1.297788176e-06 | T23: 1.221151974e-06 | V23: -28.95815973 | W23: -28.86796187 | X23: -29.13230284 | Z23: -28.86796187 | AD23: -110 | AE23: =IF('LOS Range'!$H$18>index+$H$25,'LOS Range'!$H$22,AD23+'LOS Range'!$H$26) -> -93.4 | AJ23: CC13x2 CC1190 - 2.5 kbps (LRM), Sub-1 GHz | AK23: -126 | AL23: 88 | AO23: 64.53203813 | AP23: 3.070735177 | AT23: 64.44184027 | AU23: 3.070735177 | BB23: 4" Reinforced Concrete Wall | BC23: =IF(freq<500,23, (IF(freq<2000, 27, 31))) -> 27 | BE23: =SUM(BE19:BE22) -> 16.6 | BG23: Soil, clayey wet | BH23: 12.5 | BJ23: DN038 - 863-928 MHz (CC_Antenna_DK2_#6) | BK23: =BL23-BM23 -> -2.01 | BL23: 2.12 | BM23: 4.13 | BO23: -40 | BP23: -40 | BR23: 790 MHz | BS23: 790 | BT23: High-band Sub-1GHz, China | BZ23: -95 | CA23: -95
B24: 5 | C24: 3.838418971 | D24: 0.4859618649 | E24: 3.838517481 | F24: 4.340992565 | G24: 0.5024750843 | I24: 0.3390734039 | J24: -0.7976581323 | L24: -0.9584526241 | M24: 0.9584526241 | O24: 8.135355577e-07 | P24: 2.156846446e-07 | Q24: 5.073904612e-07 | S24: 6.068120441e-07 | T24: 1.299845277e-06 | V24: -30.8962346 | W24: -32.16945808 | X24: -28.8610834 | Z24: -32.16945808 | AD24: -110 | AE24: =IF('LOS Range'!$H$18>index+$H$25,'LOS Range'!$H$22,AD24+'LOS Range'!$H$26) -> -93.4 | AJ24: CC13x2 CC1190 - 5 kbps (LRM), Sub-1 GHz | AK24: -125 | AL24: 76 | AO24: 61.23054192 | AP24: 3.838418971 | AT24: 62.5037654 | AU24: 3.838418971 | BB24: 3" Lumber Wall | BC24: =IF(freq<500,1.5, (IF(freq<2000, 2.2, 3.4))) -> 2.2 | BG24: Snow | BH24: 10 | BJ24: Compact 779-787 MHz (hand held) | BK24: -2.5 | BO24: -50 | BP24: -50 | BR24: 868 MHz | BS24: 868 | BT24: High-band Sub-1GHz, Europe, Africa | BZ24: -100 | CA24: -100
B25: 6 | C25: 4.606102766 | D25: 0.4146550654 | E25: 4.606184857 | F25: 5.032587698 | G25: 0.4264028409 | I25: 0.272851019 | J25: -0.8227416185 | L25: 0.1013692265 | M25: -0.1013692265 | O25: 5.649641087e-07 | P25: 1.291357419e-07 | Q25: 3.893896005e-07 | S25: 5.78054499e-07 | T25: 5.254919861e-07 | V25: -32.47979141 | W25: -32.38031214 | X25: -32.79433903 | Z25: -32.38031214 | AD25: -110 | AE25: =IF('LOS Range'!$H$18>index+$H$25,'LOS Range'!$H$22,AD25+'LOS Range'!$H$26) -> -93.4 | AJ25: CC13xx - 2.5 kbps (LRM), Sub-1 GHz | AK25: -121 | AL25: 88 | AO25: 61.01968786 | AP25: 4.606102766 | AT25: 60.92020859 | AU25: 4.606102766 | BB25: Clear Glass Window | BC25: =IF(freq<500,1.2, (IF(freq<2000, 2.2, 3.4))) -> 2.2 | BG25: Ice | BH25: 6 | BJ25: Compact 470-510 MHz (CC_Antenna_DK2_#4) | BK25: =BL25-BM25 -> -4.37 | BL25: 0.13 | BM25: 4.5 | BO25: -60 | BP25: -60 | BR25: 915 MHz | BS25: 915 | BT25: High-band Sub-1GHz, US, Australia | BZ25: -105 | CA25: -105
B26: 7 | C26: 5.37378656 | D26: 0.3607807492 | E26: 5.373856924 | F26: 5.743547531 | G26: 0.3696906069 | I26: 0.2111931947 | J26: -0.8428013574 | L26: 0.9055311007 | M26: -0.9055311007 | O26: 4.150795969e-07 | P26: 7.674022461e-08 | Q26: 3.062445528e-07 | S26: 4.84570257e-07 | T26: 1.377656299e-07 | V26: -33.81868614 | W26: -33.14643246 | X26: -38.60859118 | Z26: -33.14643246 | AD26: -110 | AE26: =IF('LOS Range'!$H$18>index+$H$25,'LOS Range'!$H$22,AD26+'LOS Range'!$H$26) -> -93.4 | AJ26: CC13xx - 5 kbps (LRM), Sub-1 GHz | AK26: -120 | AL26: 88 | AO26: 60.25356754 | AP26: 5.37378656 | AT26: 59.58131386 | AU26: 5.37378656 | BB26: Spandrel Glass Window | BC26: =IF(freq<500,2.4, (IF(freq<2000, 4.4, 6.8))) -> 4.4 | BG26: Soil / Sand, dry | BH26: 5 | BJ26: Compact 433 MHz (CC_Antenna_DK2_#4) | BK26: =BL26-BM26 -> -4.58 | BL26: 0.21 | BM26: 4.79 | BO26: -70 | BP26: -70 | BR26: 920 MHz | BS26: 920 | BT26: High-band Sub-1GHz, Japan | BZ26: -110 | CA26: -110
B27: 8 | C27: 6.141470354 | D27: 0.3188671959 | E27: 6.141531923 | F27: 6.467489031 | G27: 0.3259571076 | I27: 0.154209113 | J27: -0.859057547 | L27: 0.9369658355 | M27: -0.9369658355 | O27: 3.177972669e-07 | P27: 4.419185406e-08 | Q27: 2.461809488e-07 | S27: 3.592035244e-07 | T27: 8.713412857e-08 | V27: -34.97849842 | W27: -34.44659411 | X27: -40.59811708 | Z27: -34.44659411 | AD27: -110 | AE27: =IF('LOS Range'!$H$18>index+$H$25,'LOS Range'!$H$22,AD27+'LOS Range'!$H$26) -> -93.4 | AJ27: CC13xx - 4.8 kbps, OOK, Sub-1 GHz | AK27: -115 | AL27: 55 | AO27: 58.95340589 | AP27: 6.141470354 | AT27: 58.42150158 | AU27: 6.141470354 | BB27: Energy Saving Hard-Coated Window | BC27: =IF(freq<500,9, (IF(freq<2000, 18, 24))) -> 18 | BJ27: Compact 169 MHz (CC_Antenna_DK2_#7) | BK27: -6 | BO27: -80 | BP27: -80 | BR27: 2.4 GHz | BS27: 2440 | BT27: Global | BZ27: -115 | CA27: -115
B28: 9 | C28: 6.909154148 | D28: 0.2854380017 | E28: 6.909208876 | F28: 7.200497712 | G28: 0.2912888354 | I28: 0.1016932156 | J28: -0.8724243553 | L28: 0.5509805416 | M28: -0.5509805416 | O28: 2.511001317e-07 | P28: 2.351096917e-08 | Q28: 2.017002019e-07 | S28: 2.640542183e-07 | T28: 1.399672452e-07 | V28: -36.00153059 | W28: -35.7830689 | X28: -38.53973585 | Z28: -35.7830689 | AD28: -110 | AE28: =IF('LOS Range'!$H$18>index+$H$25,'LOS Range'!$H$22,AD28+'LOS Range'!$H$26) -> -93.4 | AJ28: CC13xx - 9.6 kbps, Narrowband, Sub-1 GHz | AK28: -118 | AL28: 55 | AO28: 57.6169311 | AP28: 6.909154148 | AT28: 57.39846941 | AU28: 6.909154148 | BB28: Energy Saving Single-Silver Coated Window | BC28: =IF(freq<500,9, (IF(freq<2000, 18, 28))) -> 18 | BG28: Submerged Conditions | BJ28: Compact 169 MHz (hand held) | BK28: -10 | BL28: 2.1 | BM28: 2.1 | BO28: -90 | BP28: -90 | BQ28: 100 | BR28: Custom | BS28: =BQ28 -> 100 | BT28: Custom | BZ28: -120 | CA28: -120
B29: 10 | C29: 7.676837943 | D29: 0.2582103338 | E29: 7.676887198 | F29: 7.940062786 | G29: 0.2631755883 | I29: 0.05331605266 | J29: -0.8835704918 | L29: 0.07234802984 | M29: -0.07234802984 | O29: 2.033917189e-07 | P29: 1.013709928e-08 | Q29: 1.679952163e-07 | S29: 2.041251181e-07 | T29: 1.91237596e-07 | V29: -36.91666733 | W29: -36.90103551 | X29: -37.18426724 | Z29: -36.90103551 | AD29: -110 | AE29: =IF('LOS Range'!$H$18>index+$H$25,'LOS Range'!$H$22,AD29+'LOS Range'!$H$26) -> -93.4 | AJ29: CC13xx - 50 kbps, 802.15.4g, Sub-1 GHz | AK29: -110 | AL29: 76 | AO29: 56.49896449 | AP29: 7.676837943 | AT29: 56.48333267 | AU29: 7.676837943 | BB29: Energy Saving Double-Silver Coated Window | BC29: =IF(freq<500,16, (IF(freq<2000, 32, 40))) -> 32 | BG29: Friis (LOS) | BH29: 0 | BJ29: -1 dB fixed gain | BK29: -1 | BO29: -100 | BP29: -100 | BZ29: -125 | CA29: -125
B30: 11 | C30: 8.444521737 | D30: 0.2356362104 | E30: 8.444566514 | F30: 8.684509406 | G30: 0.2399428912 | I30: 0.008713368296 | J30: -0.8929853408 | L30: -0.3428816556 | M30: 0.3428816556 | O30: 1.68092704e-07 | P30: 1.384838333e-09 | Q30: 1.419244876e-07 | S30: 1.676178684e-07 | T30: 2.167560073e-07 | V30: -37.74451136 | W30: -37.75679687 | X30: -36.64028857 | Z30: -37.75679687 | AD30: -110 | AE30: =IF('LOS Range'!$H$18>index+$H$25,'LOS Range'!$H$22,AD30+'LOS Range'!$H$26) -> -93.4 | AJ30: CC13xx - 100 kbps, Sub-1 GHz | AK30: -104 | AL30: 67 | AO30: 55.64320313 | AP30: 8.444521737 | AT30: 55.65548864 | AU30: 8.444521737 | BG30: Friis (LOS) in Rain | BH30: 0.0001 | BJ30: -2 dB fixed gain | BK30: -2 | BO30: -110 | BP30: -110 | BZ30: -130 | CA30: -130
B31: 12 | C31: 9.212205531 | D31: 0.2166346663 | E31: 9.212246577 | F31: 9.432681856 | G31: 0.2204352789 | I31: -0.03247301317 | J31: -0.9010305905 | L31: 0.6477680393 | M31: 0.6477680393 | O31: 1.41244803e-07 | P31: 4.37477579e-09 | Q31: 1.21387159e-07 | S31: 1.44078643e-07 | T31: 2.19875525e-07 | V31: -38.50027523 | W31: -38.41400391 | X31: -36.5782311 | Z31: -38.41400391 | AD31: -110 | AE31: =IF('LOS Range'!$H$18>index+$H$25,'LOS Range'!$H$22,AD31+'LOS Range'!$H$26) -> -93.4 | AJ31: CC13xx - 200 kbps, Sub-1 GHz | AK31: -103 | AL31: 51 | AO31: 54.98599609 | AP31: 9.212205531 | AT31: 54.89972477 | AU31: 9.212205531 | BG31: Submerged in Arctic Sea | BH31: 2 | BJ31: -3 dB fixed gain | BK31: -3 | BO31: -120 | BP31: -120 | BZ31: -135 | CA31: -135
B32: 13 | C32: 9.979889325 | D32: 0.2004307892 | E32: 9.979927214 | F32: 10.18375899 | G32: 0.2038317775 | I32: -0.07057748833 | J32: -0.9079771368 | L32: 0.8449756512 | M32: 0.8449756512 | O32: 1.203507601e-07 | P32: 8.157433807e-09 | Q32: 1.049451258e-07 | S32: 1.27243593e-07 | T32: 2.090268361e-07 | V32: -39.19551163 | W32: -38.95364076 | X32: -36.79797953 | Z32: -38.95364076 | AD32: -110 | AE32: =IF('LOS Range'!$H$18>index+$H$25,'LOS Range'!$H$22,AD32+'LOS Range'!$H$26) -> -93.4 | AJ32: CC13x2 / CC26x2 - 125 kbps (BLE) | AK32: -105 | AL32: 64 | AO32: 54.44635924 | AP32: 9.979889325 | AT32: 54.20448837 | AU32: 9.979889325 | BG32: Submerged in Sea Water | BH32: 4 | BJ32: -6 dB fixed gain | BK32: -6 | BO32: -130 | BP32: -130 | BZ32: -140 | CA32: -140
B33: 14 | C33: 10.74757312 | D33: 0.1864559959 | E33: 10.7476083 | F33: 10.93714242 | G33: 0.1895341133 | I33: -0.1059042212 | J33: -0.9140307886 | L33: 0.9540477577 | M33: 0.9540477577 | O33: 1.037719374e-07 | P33: 1.061229029e-08 | Q33: 9.159181721e-08 | S33: 1.138965691e-07 | T33: 1.911549052e-07 | V33: -39.83920075 | W33: -39.43489358 | X33: -37.18614553 | Z33: -39.43489358 | AD33: -110 | AE33: =IF('LOS Range'!$H$18>index+$H$25,'LOS Range'!$H$22,AD33+'LOS Range'!$H$26) -> -93.4 | AJ33: CC13x2 / CC26x2 - 500 kbps (BLE) | AK33: -100 | AL33: 49 | AO33: 53.96510642 | AP33: 10.74757312 | AT33: 53.56079925 | AU33: 10.74757312 | BG33: Submerged in Red Sea | BH33: 8 | BJ33: -10 dB fixed gain | BK33: -10 | BZ33: -145 | CA33: -145
B34: 15 | C34: 11.51525691 | D34: 0.1742844165 | E34: 11.51528975 | F34: 11.69238633 | G34: 0.1770965773 | I34: -0.1387261008 | J34: -0.9193501228 | L34: 0.9969436631 | M34: 0.9969436631 | O34: 9.039696394e-08 | P34: 1.216341297e-08 | Q34: 8.060801203e-08 | S34: 1.025232014e-07 | T34: 1.707586107e-07 | V34: -40.43846155 | W34: -39.89177841 | X34: -37.67617387 | Z34: -39.89177841 | AD34: -110 | AE34: =IF('LOS Range'!$H$18>index+$H$25,'LOS Range'!$H$22,AD34+'LOS Range'!$H$26) -> -93.4 | AJ34: CC13x2 / CC26x2 - 1 Mbps (2-GFSK & BLE) | AK34: -97 | AL34: 48 | AO34: 53.50822159 | AP34: 11.51525691 | AT34: 52.96153845 | AU34: 11.51525691 | BG34: Fresh water | BH34: 0.1 | BZ34: -150 | CA34: -150
B35: 16 | C35: 12.28294071 | D35: 0.1635911946 | E35: 12.28297149 | F35: 12.44915213 | G35: 0.1661806347 | I35: -0.1692862077 | J35: -0.9240589727 | L35: 0.9927775444 | M35: 0.9927775444 | O35: 7.945051146e-08 | P35: 1.309319432e-08 | Q35: 7.146999069e-08 | S35: 9.244914076e-08 | T35: 1.504043133e-07 | V35: -40.99903303 | W35: -40.34097121 | X35: -38.22739709 | Z35: -40.34097121 | AD35: -110 | AE35: =IF('LOS Range'!$H$18>index+$H$25,'LOS Range'!$H$22,AD35+'LOS Range'!$H$26) -> -93.4 | AJ35: CC13x2 / CC26x2 - 2 Mbps (BLE) | AK35: -92 | AL35: 44 | AO35: 53.05902879 | AP35: 12.28294071 | AT35: 52.40096697 | AU35: 12.28294071
B36: 17 | C36: 13.0506245 | D36: 0.1541244663 | E36: 13.05065348 | F36: 13.20717821 | G36: 0.1565247295 | I36: -0.1978003309 | J36: -0.9282552595 | L36: 0.9565652705 | M36: 0.9565652705 | O36: 7.037834801e-08 | P36: 1.359284996e-08 | Q36: 6.37897541e-08 | S36: 8.338079621e-08 | T36: 1.313974114e-07 | V36: -41.52560932 | W36: -40.78933962 | X36: -38.81413191 | Z36: -40.78933962 | AD36: -110 | AE36: =IF('LOS Range'!$H$18>index+$H$25,'LOS Range'!$H$22,AD36+'LOS Range'!$H$26) -> -93.4 | AJ36: CC13x2 - 50 kbps, Wi-SUN | AK36: -107 | AL36: 65 | AO36: 52.61066038 | AP36: 13.0506245 | AT36: 51.87439068 | AU36: 13.0506245
B37: 18 | C37: 13.8183083 | D37: 0.1456861024 | E37: 13.81833566 | F37: 13.96625936 | G37: 0.1479236965 | I37: -0.2244598072 | J37: -0.9320173192 | L37: 0.8994927308 | M37: 0.8994927308 | O37: 6.27757788e-08 | P37: 1.379373776e-08 | Q37: 5.727529864e-08 | S37: 7.518314564e-08 | T37: 1.142944936e-07 | V37: -42.02207891 | W37: -41.23879507 | X37: -39.41974692 | Z37: -41.23879507 | AD37: -110 | AE37: =IF('LOS Range'!$H$18>index+$H$25,'LOS Range'!$H$22,AD37+'LOS Range'!$H$26) -> -93.4 | AJ37: CC13x2 - 100 kbps, 25 kHz fdev, Wi-SUN | AK37: -104 | AL37: 65 | AO37: 52.16120493 | AP37: 13.8183083 | AT37: 51.37792109 | AU37: 13.8183083
B38: 19 | C38: 14.58599209 | D38: 0.1381181982 | E38: 14.58601801 | F38: 14.72623243 | G38: 0.1402144134 | I38: -0.2494343275 | J38: -0.9354084953 | L38: 0.8296299367 | M38: 0.8296299367 | O38: 5.634171908e-08 | P38: 1.378721363e-08 | Q38: 5.170369647e-08 | S38: 6.778000425e-08 | T38: 9.923665351e-08 | V38: -42.49169906 | W38: -41.68898408 | X38: -40.0332789 | Z38: -41.68898408 | AD38: -110 | AE38: =IF('LOS Range'!$H$18>index+$H$25,'LOS Range'!$H$22,AD38+'LOS Range'!$H$26) -> -93.4 | AJ38: CC13x2 - 100 kbps, 50 kHz fdev, Wi-SUN | AK38: -102 | AL38: 65 | AO38: 51.71101592 | AP38: 14.58599209 | AT38: 50.90830094 | AU38: 14.58599209
B39: 20 | C39: 15.35367589 | D39: 0.131293419 | E39: 15.35370051 | F39: 15.48696611 | G39: 0.1332656019 | I39: -0.2728745472 | J39: -0.9384805166 | L39: 0.7526700209 | M39: 0.7526700209 | O39: 5.084841909e-08 | P39: 1.363747342e-08 | Q39: 4.690251702e-08 | S39: 6.111293649e-08 | T39: 8.615053756e-08 | V39: -42.93722545 | W39: -42.13866848 | X39: -40.64742008 | Z39: -42.13866848 | AD39: -110 | AE39: =IF('LOS Range'!$H$18>index+$H$25,'LOS Range'!$H$22,AD39+'LOS Range'!$H$26) -> -93.4 | AJ39: CC13x2 - 200 kbps, Wi-SUN | AK39: -99 | AL39: 65 | AO39: 51.26133152 | AP39: 15.35367589 | AT39: 50.46277455 | AU39: 15.35367589
B40: 21 | C40: 16.12135968 | D40: 0.1251079833 | E40: 16.12138313 | F40: 16.24835358 | G40: 0.1269704488 | I40: -0.2949144374 | J40: -0.9412760132 | L40: 0.6725549194 | M40: 0.6725549194 | O40: 4.612102881e-08 | P40: 1.339000985e-08 | Q40: 4.273678561e-08 | S40: 5.51265458e-08 | T40: 7.486386421e-08 | V40: -43.36101014 | W40: -42.58639219 | X40: -41.2572776 | Z40: -42.58639219 | AD40: -110 | AE40: =IF('LOS Range'!$H$18>index+$H$25,'LOS Range'!$H$22,AD40+'LOS Range'!$H$26) -> -93.4 | AJ40: CC13x2 - 240 kbps, WB-DSSS=1 | AK40: -105 | AL40: 65 | AO40: 50.81360781 | AP40: 16.12135968 | AT40: 50.03898986 | AU40: 16.12135968
B41: 22 | C41: 16.88904347 | D41: 0.1194764842 | E41: 16.88906586 | F41: 17.01030704 | G41: 0.1212411808 | I41: -0.3156733649 | J41: -0.9438304132 | L41: 0.5919626633 | M41: 0.5919626633 | O41: 4.202351025e-08 | P41: 1.307727387e-08 | Q41: 3.909968395e-08 | S41: 4.976476812e-08 | T41: 6.51690633e-08 | V41: -43.76507674 | W41: -43.03078015 | X41: -41.85958521 | Z41: -43.03078015 | AD41: -110 | AE41: =IF('LOS Range'!$H$18>index+$H$25,'LOS Range'!$H$22,AD41+'LOS Range'!$H$26) -> -93.4 | AJ41: CC13x2 - 120 kbps, WB-DSSS=2 | AK41: -106 | AL41: 65 | AO41: 50.36921985 | AP41: 16.88904347 | AT41: 49.63492326 | AU41: 16.88904347
B42: 23 | C42: 17.65672727 | D42: 0.1143280131 | E42: 17.65674868 | F42: 17.7727537 | G42: 0.1160050163 | I42: -0.3352579135 | J42: -0.9461733886 | L42: 0.5126711644 | M42: 0.5126711644 | O42: 3.844874017e-08 | P42: 1.272252106e-08 | Q42: 3.590582168e-08 | S42: 4.497120985e-08 | T42: 5.685661957e-08 | V42: -44.15117886 | W42: -43.47065429 | X42: -42.45218965 | Z42: -43.47065429 | AD42: -110 | AE42: =IF('LOS Range'!$H$18>index+$H$25,'LOS Range'!$H$22,AD42+'LOS Range'!$H$26) -> -93.4 | AJ42: CC13x2 - 60 kbps, WB-DSSS=4 | AK42: -108 | AL42: 65 | AO42: 49.92934571 | AP42: 17.65672727 | AT42: 49.24882114 | AU42: 17.65672727
B43: 24 | C43: 18.42441106 | D43: 0.1096032209 | E43: 18.42443159 | F43: 18.53563269 | G43: 0.1112011053 | I43: -0.3537634679 | J43: -0.9483299692 | L43: 0.4358234989 | M43: 0.4358234989 | O43: 3.531143676e-08 | P43: 1.234246028e-08 | Q43: 3.308630212e-08 | S43: 4.069057098e-08 | T43: 4.973122471e-08 | V43: -44.52084611 | W43: -43.90506216 | X43: -43.03370845 | Z43: -43.90506216 | AD43: -110 | AE43: =IF('LOS Range'!$H$18>index+$H$25,'LOS Range'!$H$22,AD43+'LOS Range'!$H$26) -> -93.4 | AJ43: CC13x2 - 30 kbps, WB-DSSS=8 | AK43: -109 | AL43: 65 | AO43: 49.49493784 | AP43: 18.42441106 | AT43: 48.87915389 | AU43: 18.42441106
B44: 25 | C44: 19.19209486 | D44: 0.1052520634 | E44: 19.19211456 | F44: 19.29889275 | G44: 0.1067781876 | I44: -0.3712755879 | J44: -0.9503214099 | L44: 0.3621187348 | M44: 0.3621187348 | O44: 3.25430258e-08 | P44: 1.194909997e-08 | Q44: 3.058505837e-08 | S44: 3.687001876e-08 | T44: 4.361844844e-08 | V44: -44.87542069 | W44: -44.33326641 | X44: -43.60329787 | Z44: -44.33326641 | AD44: -110 | AE44: =IF('LOS Range'!$H$18>index+$H$25,'LOS Range'!$H$22,AD44+'LOS Range'!$H$26) -> -93.4 | AJ44: CC26x0 - IEEE 802.15.4, 250kbps | AK44: -100 | AL44: 32 | AO44: 49.06673359 | AP44: 19.19209486 | AT44: 48.52457931 | AU44: 19.19209486
B45: 26 | C45: 19.95977865 | D45: 0.1012320531 | E45: 19.9597976 | F45: 20.06249037 | G45: 0.1026927797 | I45: -0.3878711983 | J45: -0.9521658719 | L45: 0.2919480716 | M45: 0.2919480716 | O45: 3.008786136e-08 | P45: 1.155104922e-08 | Q45: 2.835610093e-08 | S45: 3.34601679e-08 | T45: 3.836637034e-08 | V45: -45.21608681 | W45: -44.75471884 | X45: -44.16049285 | Z45: -44.75471884 | AD45: -110 | AE45: =IF('LOS Range'!$H$18>index+$H$25,'LOS Range'!$H$22,AD45+'LOS Range'!$H$26) -> -93.4 | AJ45: CC26x0 - 125 kbps (BLE) | AK45: -103 | AL45: 37 | AO45: 48.64528116 | AP45: 19.95977865 | AT45: 48.18391319 | AU45: 19.95977865
B46: 27 | C46: 20.72746245 | D46: 0.09750688877 | E46: 20.72748069 | F46: 20.82638845 | G46: 0.09890775723 | I46: -0.4036196201 | J46: -0.9538789624 | L46: 0.2254914511 | M46: 0.2254914511 | O46: 2.790040752e-08 | P46: 1.115444395e-08 | Q46: 2.636142767e-08 | S46: 3.041563928e-08 | T46: 3.38446841e-08 | V46: -45.54389453 | W46: -45.16903051 | X46: -44.70509535 | Z46: -45.16903051 | AD46: -110 | AE46: =IF('LOS Range'!$H$18>index+$H$25,'LOS Range'!$H$22,AD46+'LOS Range'!$H$26) -> -93.4 | AJ46: CC26x0 - 500 kbps (BLE) | AK46: -101 | AL46: 33 | AO46: 48.23096949 | AP46: 20.72746245 | AT46: 47.85610547 | AU46: 20.72746245
B47: 28 | C47: 21.49514624 | D47: 0.09404537287 | E47: 21.49516383 | F47: 21.59055507 | G47: 0.09539123647 | I47: -0.4185834632 | J47: -0.9554741658 | L47: 0.1627858593 | M47: 0.1627858593 | O47: 2.594311173e-08 | P47: 1.076361206e-08 | Q47: 2.456942082e-08 | S47: 2.769527557e-08 | T47: 2.994266601e-08 | V47: -45.85977934 | W47: -45.57594309 | X47: -45.23709534 | Z47: -45.57594309 | AD47: -110 | AE47: =IF('LOS Range'!$H$18>index+$H$25,'LOS Range'!$H$22,AD47+'LOS Range'!$H$26) -> -93.4 | AJ47: CC26x0 - 1 Mbps (BLE) | AK47: -97 | AL47: 73.5 | AO47: 47.82405691 | AP47: 21.49514624 | AT47: 47.54022066 | AU47: 21.49514624
B48: 29 | C48: 22.26283003 | D48: 0.09082054728 | E48: 22.26284702 | F48: 22.3549627 | G48: 0.09211568264 | I48: -0.4328194015 | J48: -0.9569631908 | L48: 0.1037734518 | M48: 0.1037734518 | O48: 2.418478223e-08 | P48: 1.038155493e-08 | Q48: 2.295360581e-08 | S48: 2.526211202e-08 | T48: 2.656675713e-08 | V48: -46.16457819 | W48: -45.97530343 | X48: -45.75661454 | Z48: -45.97530343 | AD48: -110 | AE48: =IF('LOS Range'!$H$18>index+$H$25,'LOS Range'!$H$22,AD48+'LOS Range'!$H$26) -> -93.4 | AJ48: CC26x0 - 2 Mbps (GFSK, Bluetooth 5) | AK48: -92 | AL48: 73 | AO48: 47.42469657 | AP48: 22.26283003 | AT48: 47.23542181 | AU48: 22.26283003
B49: 30 | C49: 23.03051383 | D49: 0.08780899877 | E49: 23.03053025 | F49: 23.11958744 | G49: 0.08905719435 | I49: -0.4463788465 | J49: -0.9583562522 | L49: 0.04833534171 | M49: 0.04833534171 | O49: 2.259933765e-08 | P49: 1.001029856e-08 | Q49: 2.149168198e-08 | S49: 2.308318885e-08 | T49: 2.363814544e-08 | V49: -46.45904289 | W49: -46.36704195 | X49: -46.26386599 | Z49: -46.36704195 | AD49: -110 | AE49: =IF('LOS Range'!$H$18>index+$H$25,'LOS Range'!$H$22,AD49+'LOS Range'!$H$26) -> -93.4 | AJ49: CC26x0 - 5 Mbps Proprietary | AK49: -81 | AL49: 72 | AO49: 47.03295805 | AP49: 23.03051383 | AT49: 46.94095711 | AU49: 23.03051383
B50: 31 | C50: 23.79819762 | D50: 0.08499029627 | E50: 23.79821351 | F50: 23.88440844 | G50: 0.08619492453 | I50: -0.4593085337 | J50: -0.9596623006 | L50: -0.003684790005 | M50: -0.003684790005 | O50: 2.116483426e-08 | P50: 9.651151235e-09 | Q50: 2.016475924e-08 | S50: 2.11292718e-08 | T50: 2.109053136e-08 | V50: -46.74385128 | W50: -46.7511547 | X50: -46.75912478 | Z50: -46.7511547 | AD50: -110 | AE50: =IF('LOS Range'!$H$18>index+$H$25,'LOS Range'!$H$22,AD50+'LOS Range'!$H$26) -> -93.4 | AJ50: CC112x / CC120x - 4.8 kbps (OOK) | AK50: -113.5 | AL50: 68 | AO50: 46.6488453 | AP50: 23.79819762 | AT50: 46.65614872 | AU50: 23.79819762
B51: 32 | C51: 24.56588142 | D51: 0.08234653175 | E51: 24.56589681 | F51: 24.64940742 | G51: 0.08351060843 | I51: -0.4716510345 | J51: -0.9608892113 | L51: -0.05246430144 | M51: -0.05246430144 | O51: 1.986270254e-08 | P51: 9.304893575e-09 | Q51: 1.895675233e-08 | S51: 1.93745278e-08 | T51: 1.886814977e-08 | V51: -47.01961661 | W51: -47.12768873 | X51: -47.24270685 | Z51: -47.12768873 | AD51: -110 | AE51: =IF('LOS Range'!$H$18>index+$H$25,'LOS Range'!$H$22,AD51+'LOS Range'!$H$26) -> -93.4 | AJ51: CC112x / CC120x - 38.4 kbps (20 kHz fdev) | AK51: -110 | AL51: 67 | AO51: 46.27231127 | AP51: 24.56588142 | AT51: 46.38038339 | AU51: 24.56588142
B52: 33 | C52: 25.33356521 | D52: 0.0798619433 | E52: 25.33358014 | F52: 25.41456831 | G52: 0.08098817643 | I52: -0.4834452028 | J52: -0.9620439408 | L52: -0.09819031306 | M52: -0.09819031306 | O52: 1.867714318e-08 | P52: 8.971919448e-09 | Q52: 1.785389677e-08 | S52: 1.77961876e-08 | T52: 1.692406346e-08 | V52: -47.28689552 | W52: -47.49673025 | X52: -47.71495355 | Z52: -47.49673025 | AD52: -110 | AE52: =IF('LOS Range'!$H$18>index+$H$25,'LOS Range'!$H$22,AD52+'LOS Range'!$H$26) -> -93.4 | AJ52: CC112x / CC120x - 50 kbps (25 kHz fdev) | AK52: -109.5 | AL52: 57 | AO52: 45.90326975 | AP52: 25.33356521 | AT52: 46.11310448 | AU52: 25.33356521
B53: 34 | C53: 26.101249 | D53: 0.07752260358 | E53: 26.10126349 | F53: 26.17987693 | G53: 0.07861343435 | I53: -0.494726568 | J53: -0.963132656 | L53: -0.1410520536 | M53: -0.1410520536 | O53: 1.75946456e-08 | P53: 8.652340809e-09 | Q53: 1.684435913e-08 | S53: 1.637421516e-08 | T53: 1.521871415e-08 | V53: -47.54619477 | W53: -47.85839507 | X53: -48.1762204 | Z53: -47.85839507 | AD53: -110 | AE53: =IF('LOS Range'!$H$18>index+$H$25,'LOS Range'!$H$22,AD53+'LOS Range'!$H$26) -> -93.4 | AJ53: CC120x - 100 kbps (50 kHz fdev) | AK53: -107 | AL53: 59 | AO53: 45.54160493 | AP53: 26.101249 | AT53: 45.85380523 | AU53: 26.101249
B54: 35 | C54: 26.8689328 | D54: 0.075316161 | E54: 26.86894687 | F54: 26.94532067 | G54: 0.07637379802 | I54: -0.5055276783 | J54: -0.964160843 | L54: -0.1812357669 | M54: -0.1812357669 | O54: 1.660360129e-08 | P54: 8.34606593e-09 | Q54: 1.591792162e-08 | S54: 1.509099563e-08 | T54: 1.371870456e-08 | V54: -47.79797704 | W54: -48.21282107 | X54: -48.62686897 | Z54: -48.21282107 | AD54: -110 | AE54: =IF('LOS Range'!$H$18>index+$H$25,'LOS Range'!$H$22,AD54+'LOS Range'!$H$26) -> -93.4 | AJ54: CC112x - 200 kbps (83 kHz fdev) | AK54: -103 | AL54: 40 | AO54: 45.18717893 | AP54: 26.8689328 | AT54: 45.60202296 | AU54: 26.8689328
B55: 36 | C55: 27.63661659 | D55: 0.07323162334 | E55: 27.63663028 | F55: 27.71088835 | G55: 0.07425807159 | I55: -0.5158784044 | J55: -0.9651333982 | L55: -0.2189214249 | M55: -0.2189214249 | O55: 1.569399132e-08 | P55: 8.052857908e-09 | Q55: 1.506572489e-08 | S55: 1.393104819e-08 | T55: 1.239578136e-08 | V55: -48.04266592 | W55: -48.56016205 | X55: -49.06726093 | Z55: -48.56016205 | AD55: -110 | AE55: =IF('LOS Range'!$H$18>index+$H$25,'LOS Range'!$H$22,AD55+'LOS Range'!$H$26) -> -93.4 | AJ55: CC120x - 500 kbps (MSK) | AK55: -97 | AL55: 40 | AO55: 44.83983795 | AP55: 27.63661659 | AT55: 45.35733408 | AU55: 27.63661659
B56: 37 | C56: 28.40430039 | D56: 0.07125917612 | E56: 28.4043137 | F56: 28.47656996 | G56: 0.07225626143 | I56: -0.5258062064 | J56: -0.9660547055 | L56: -0.2542807078 | M56: -0.2542807078 | O56: 1.485713208e-08 | P56: 7.772378461e-09 | Q56: 1.428005735e-08 | S56: 1.288076619e-08 | T56: 1.122598899e-08 | V56: -48.28065016 | W56: -48.90058303 | X56: -49.49775388 | Z56: -48.90058303 | AD56: -110 | AE56: =IF('LOS Range'!$H$18>index+$H$25,'LOS Range'!$H$22,AD56+'LOS Range'!$H$26) -> -93.4 | AJ56: CC120x - 1 Mbps (4-GFSK) | AK56: -97 | AL56: 40 | AO56: 44.49941697 | AP56: 28.40430039 | AT56: 45.11934984 | AU56: 28.40430039
B57: 38 | C57: 29.17198418 | D57: 0.06939002918 | E57: 29.17199714 | F57: 29.24235656 | G57: 0.0703594192 | I57: -0.5353363701 | J57: -0.9669287009 | L57: -0.2874758688 | M57: -0.2874758688 | O57: 1.408546732e-08 | P57: 7.504220702e-09 | Q57: 1.355418159e-08 | S57: 1.192818495e-08 | T57: 1.018896719e-08 | V57: -48.5122874 | W57: -49.23425635 | X57: -49.91869836 | Z57: -49.23425635 | AD57: -110 | AE57: =IF('LOS Range'!$H$18>index+$H$25,'LOS Range'!$H$22,AD57+'LOS Range'!$H$26) -> -93.4 | AJ57: CC11xL / CC110x / CC111x - 0.6 kbps | AK57: -116 | AL57: 40 | AO57: 44.16574365 | AP57: 29.17198418 | AT57: 44.8877126 | AU57: 29.17198418
B58: 39 | C58: 29.93966798 | D58: 0.06761628669 | E58: 29.93968061 | F58: 30.00824011 | G58: 0.06855950883 | I58: -0.5444922164 | J58: -0.9677589286 | L58: -0.3186592097 | M58: -0.3186592097 | O58: 1.337239693e-08 | P58: 7.247933642e-09 | Q58: 1.288219057e-08 | S58: 1.106277612e-08 | T58: 9.267368261e-09 | V58: -48.73790741 | W58: -49.56135876 | X58: -50.33043579 | Z58: -49.56135876 | AD58: -110 | AE58: =IF('LOS Range'!$H$18>index+$H$25,'LOS Range'!$H$22,AD58+'LOS Range'!$H$26) -> -93.4 | AJ58: CC11xL / CC110x / CC111x - 1.2 kbps | AK58: -111 | AL58: 40 | AO58: 43.83864124 | AP58: 29.93966798 | AT58: 44.66209259 | AU58: 29.93966798
B59: 40 | C59: 30.70735177 | D59: 0.06593083638 | E59: 30.70736408 | F59: 30.77421338 | G59: 0.06684929323 | I59: -0.5532952872 | J59: -0.9685485883 | L59: -0.3479729723 | M59: -0.3479729723 | O59: 1.271213536e-08 | P59: 7.003040448e-09 | Q59: 1.225888797e-08 | S59: 1.027526656e-08 | T59: 8.446373675e-09 | V59: -48.95781491 | W59: -49.88206903 | X59: -50.73329709 | Z59: -49.88206903 | AD59: -110 | AE59: =IF('LOS Range'!$H$18>index+$H$25,'LOS Range'!$H$22,AD59+'LOS Range'!$H$26) -> -93.4 | AJ59: CC11xL / CC110x / CC111x - 38.2 kbps | AK59: -103 | AL59: 40 | AO59: 43.51793097 | AP59: 30.70735177 | AT59: 44.44218509 | AU59: 30.70735177
B60: 41 | C60: 31.47503556 | D60: 0.06432725481 | E60: 31.47504758 | F60: 31.54026982 | G60: 0.06522223754 | I60: -0.5617655105 | J60: -0.9693005759 | L60: -0.3755495083 | M60: -0.3755495083 | O60: 1.209959391e-08 | P60: 6.769051977e-09 | Q60: 1.167968816e-08 | S60: 9.557479767e-09 | T60: 7.713292765e-09 | V60: -49.17229205 | W60: -50.19656613 | X60: -51.12760184 | Z60: -50.19656613 | AD60: -110 | AE60: =IF('LOS Range'!$H$18>index+$H$25,'LOS Range'!$H$22,AD60+'LOS Range'!$H$26) -> -93.4 | AJ60: CC11xL / CC110x / CC111x - 250 kbps | AK60: -95 | AL60: 40 | AO60: 43.20343387 | AP60: 31.47503556 | AT60: 44.22770795 | AU60: 31.47503556
B61: 42 | C61: 32.24271936 | D61: 0.06279972608 | E61: 32.24273109 | F61: 32.30640351 | G61: 0.06367242606 | I61: -0.5699213482 | J61: -0.9700175186 | L61: -0.4015116283 | M61: -0.4015116283 | O61: 1.153028236e-08 | P61: 6.54547674e-09 | Q61: 1.114053215e-08 | S61: 8.90219734e-09 | T61: 7.057229159e-09 | V61: -49.38160057 | W61: -50.50502783 | X61: -51.5136578 | Z61: -50.50502783 | AD61: -110 | AE61: =IF('LOS Range'!$H$18>index+$H$25,'LOS Range'!$H$22,AD61+'LOS Range'!$H$26) -> -93.4 | AJ61: CC11xL / CC110x / CC111x - 500 kbps (MSK) | AK61: -89 | AL61: 40 | AO61: 42.89497217 | AP61: 32.24271936 | AT61: 44.01839943 | AU61: 32.24271936 | BE61: Theoretically, there is an optimum separation/datarate setting if you simultaneously minimize the Rx filter bandwidth. Every halving of Rx filter bandwidth increases sensitivity with 3 dB whereas sensitivity vs separation/datarate (modulation index) decreases with about 1.5-2.5 dB per halving down to a certain limit where the loss increases very fast (I wouldn't go below a modulation index less than 0.5). Our experience is to that a modulation index of 1 is a good compromise. Note that the frequency offset between Rx and Tx needs to be taken into account when selecting the Rx filter bandwidth.
B62: 43 | C62: 33.01040315 | D62: 0.06134297174 | E62: 33.01041461 | F62: 33.0726091 | G62: 0.06219449065 | I62: -0.5777799274 | J62: -0.9707018054 | L62: -0.4259730616 | M62: -0.4259730616 | O62: 1.100022648e-08 | P62: 6.331828154e-09 | Q62: 1.06378168e-08 | S62: 8.303038261e-09 | T62: 6.468803092e-09 | V62: -49.58598373 | W62: -50.80762961 | X62: -51.89176068 | Z62: -50.80762961 | AD62: -110 | AE62: =IF('LOS Range'!$H$18>index+$H$25,'LOS Range'!$H$22,AD62+'LOS Range'!$H$26) -> -93.4 | AJ62: CC11xL / CC110x - 500 kbps (4-FSK) | AK62: -96 | AL62: 40 | AO62: 42.59237039 | AP62: 33.01040315 | AT62: 43.81401627 | AU62: 33.01040315
B63: 44 | C63: 33.77808695 | D63: 0.05995219021 | E63: 33.77809814 | F63: 33.83888169 | G63: 0.0607835489 | I63: -0.5853571584 | J63: -0.9713556136 | L63: -0.4490389777 | M63: -0.4490389777 | O63: 1.050589845e-08 | P63: 6.127629733e-09 | Q63: 1.016833476e-08 | S63: 7.754353862e-09 | T63: 5.939919809e-09 | V63: -49.78566801 | W63: -51.10454384 | X63: -52.26219418 | Z63: -51.10454384 | AD63: -110 | AE63: =IF('LOS Range'!$H$18>index+$H$25,'LOS Range'!$H$22,AD63+'LOS Range'!$H$26) -> -93.4 | AO63: 42.29545616 | AP63: 33.77808695 | AT63: 43.61433199 | AU63: 33.77808695
B64: 45 | C64: 34.54577074 | D64: 0.05862300412 | E64: 34.54578169 | F64: 34.60521684 | G64: 0.05943515043 | I64: -0.5926678401 | J64: -0.9719809313 | L64: -0.4708065356 | M64: -0.4708065356 | O64: 1.004415802e-08 | P64: 5.932418726e-09 | Q64: 9.729223502e-09 | S64: 7.251136515e-09 | T64: 5.463576012e-09 | V64: -49.98086463 | W64: -51.39593918 | X64: -52.6252301 | Z64: -51.39593918 | AD64: -110 | AE64: =IF('LOS Range'!$H$18>index+$H$25,'LOS Range'!$H$22,AD64+'LOS Range'!$H$26) -> -93.4 | AO64: 42.00406082 | AP64: 34.54577074 | AT64: 43.41913537 | AU64: 34.54577074
B65: 46 | C65: 35.31345454 | D65: 0.05735141459 | E65: 35.31346524 | F65: 35.37161047 | G65: 0.05814523021 | I65: -0.5997257554 | J65: -0.9725795778 | L65: -0.4913654394 | M65: -0.4913654394 | O65: 9.612202529e-09 | P65: 5.745748571e-09 | Q65: 9.31792185e-09 | S65: 6.788940258e-09 | T65: 5.033697765e-09 | V65: -50.17177087 | W65: -51.68198013 | X65: -52.98112864 | Z65: -51.68198013 | AD65: -110 | AE65: =IF('LOS Range'!$H$18>index+$H$25,'LOS Range'!$H$22,AD65+'LOS Range'!$H$26) -> -93.4 | AO65: 41.71801987 | AP65: 35.31345454 | AT65: 43.22822913 | AU65: 35.31345454 | BE65: http://urn.kb.se/resolve?urn=urn:nbn:se:kth:diva-175149
B66: 47 | C66: 36.08113833 | D66: 0.05613376118 | E66: 36.08114881 | F66: 36.13805888 | G66: 0.05691006772 | I66: -0.606543756 | J66: -0.9731532209 | L66: -0.5107984823 | M66: -0.5107984823 | O66: 9.207524251e-09 | P66: 5.567190458e-09 | Q66: 8.932132715e-09 | S66: 6.363811815e-09 | T66: 4.645004417e-09 | V66: -50.35857129 | W66: -51.96282671 | X66: -53.33013869 | Z66: -51.96282671 | AD66: -110 | AE66: =IF('LOS Range'!$H$18>index+$H$25,'LOS Range'!$H$22,AD66+'LOS Range'!$H$26) -> -93.4 | AO66: 41.43717329 | AP66: 36.08113833 | AT66: 43.04142871 | AU66: 36.08113833
B67: 48 | C67: 36.84882212 | D67: 0.05496668691 | E67: 36.84883239 | F67: 36.90455864 | G67: 0.05572625127 | I67: -0.6131338398 | J67: -0.9737033925 | L67: -0.5291820713 | M67: -0.5291820713 | O67: 8.82787394e-09 | P67: 5.396334222e-09 | Q67: 8.569791125e-09 | S67: 5.97223062e-09 | T67: 4.292894122e-09 | V67: -50.54143877 | W67: -52.2386343 | X67: -53.67249823 | Z67: -52.2386343 | AD67: -110 | AE67: =IF('LOS Range'!$H$18>index+$H$25,'LOS Range'!$H$22,AD67+'LOS Range'!$H$26) -> -93.4 | AO67: 41.1613657 | AP67: 36.84882212 | AT67: 42.85856123 | AU67: 36.84882212
B68: 49 | C68: 37.61650592 | D68: 0.05384710742 | E68: 37.61651597 | F68: 37.67110662 | G68: 0.05459064663 | I68: -0.6195072201 | J68: -0.9742315021 | L68: -0.5465867254 | M68: -0.5465867254 | O68: 8.471229494e-09 | P68: 5.232788735e-09 | Q68: 8.229036665e-09 | S68: 5.611056635e-09 | T68: 3.973347291e-09 | V68: -50.72053553 | W68: -52.50955348 | X68: -54.00843474 | Z68: -52.50955348 | AD68: -110 | AE68: =IF('LOS Range'!$H$18>index+$H$25,'LOS Range'!$H$22,AD68+'LOS Range'!$H$26) -> -93.4 | AO68: 40.89044652 | AP68: 37.61650592 | AT68: 42.67946447 | AU68: 37.61650592
B69: 50 | C69: 38.38418971 | D69: 0.05277218394 | E69: 38.38419956 | F69: 38.43769993 | G69: 0.05350036939 | I69: -0.6256743888 | J69: -0.9747388485 | L69: -0.5630775441 | M69: -0.5630775441 | O69: 8.135768979e-09 | P69: 5.076181932e-09 | Q69: 7.908189659e-09 | S69: 5.277484923e-09 | T69: 3.682844968e-09 | V69: -50.89601392 | W69: -52.77572999 | X69: -54.33816563 | Z69: -52.77572999 | AD69: -110 | AE69: =IF('LOS Range'!$H$18>index+$H$25,'LOS Range'!$H$22,AD69+'LOS Range'!$H$26) -> -93.4 | AO69: 40.62427001 | AP69: 38.38418971 | AT69: 42.50398608 | AU69: 38.38418971
B70: 51 | C70: 39.15187351 | D70: 0.0517392993 | E70: 39.15188317 | F70: 39.20433593 | G70: 0.05245276058 | I70: -0.6316451729 | J70: -0.975226631 | L70: -0.5787146446 | M70: -0.5787146446 | O70: 7.819847309e-09 | P70: 4.926160562e-09 | Q70: 7.605730519e-09 | S70: 4.96900605e-09 | T70: 3.418299675e-09 | V70: -51.06801727 | W70: -53.03730474 | X70: -54.66189866 | Z70: -53.03730474 | AD70: -110 | AE70: =IF('LOS Range'!$H$18>index+$H$25,'LOS Range'!$H$22,AD70+'LOS Range'!$H$26) -> -93.4 | AO70: 40.36269526 | AP70: 39.15187351 | AT70: 42.33198273 | AU70: 39.15187351
B71: 52 | C71: 39.9195573 | D71: 0.05074603675 | E71: 39.91956677 | F71: 39.97101214 | G71: 0.0514453651 | I71: -0.6374287865 | J71: -0.9756959581 | L71: -0.5935535676 | M71: -0.5935535676 | O71: 7.521976048e-09 | P71: 4.782389746e-09 | Q71: 7.320281801e-09 | S71: 4.683371553e-09 | T71: 3.176996669e-09 | V71: -51.23668054 | W71: -53.29441386 | X71: -54.9798324 | Z71: -53.29441386 | AD71: -110 | AE71: =IF('LOS Range'!$H$18>index+$H$25,'LOS Range'!$H$22,AD71+'LOS Range'!$H$26) -> -93.4 | AO71: 40.10558614 | AP71: 39.9195573 | AT71: 42.16331946 | AU71: 39.9195573
B72: 53 | C72: 40.6872411 | D72: 0.04979016117 | E72: 40.68725039 | F72: 40.7377263 | G72: 0.05047591251 | I72: -0.6430338774 | J72: -0.9761478565 | L72: -0.6076456521 | M72: -0.6076456521 | O72: 7.240805837e-09 | P72: 4.644552398e-09 | Q72: 7.050592554e-09 | S72: 4.418563766e-09 | T72: 2.956543926e-09 | V72: -51.40213098 | W72: -53.54718873 | X72: -55.29215664 | Z72: -53.54718873 | AD72: -110 | AE72: =IF('LOS Range'!$H$18>index+$H$25,'LOS Range'!$H$22,AD72+'LOS Range'!$H$26) -> -93.4 | AO72: 39.85281127 | AP72: 40.6872411 | AT72: 41.99786902 | AU72: 40.6872411
B73: 54 | C73: 41.45492489 | D73: 0.04886960228 | E73: 41.45493401 | F73: 41.50447631 | G73: 0.04954230007 | I73: -0.6484685701 | J73: -0.9765832779 | L73: -0.6210383813 | M73: -0.6210383813 | O73: 6.975111089e-09 | P73: 4.512348561e-09 | Q73: 6.795524644e-09 | S73: 4.172769443e-09 | T73: 2.754829464e-09 | V73: -51.56448871 | W73: -53.79575611 | X73: -55.59905281 | Z73: -53.79575611 | AD73: -110 | AE73: =IF('LOS Range'!$H$18>index+$H$25,'LOS Range'!$H$22,AD73+'LOS Range'!$H$26) -> -93.4 | AO73: 39.60424389 | AP73: 41.45492489 | AT73: 41.83551129 | AU73: 41.45492489
B74: 55 | C74: 42.22260868 | D74: 0.04798243982 | E74: 42.22261764 | F74: 42.27126022 | G74: 0.04864257748 | I74: -0.6537405047 | J74: -0.9770031065 | L74: -0.633775699 | M74: -0.633775699 | O74: 6.723776614e-09 | P74: 4.385494676e-09 | Q74: 6.554040772e-09 | S74: 3.94435666e-09 | T74: 2.569984843e-09 | V74: -51.72386724 | W74: -54.04023822 | X74: -55.90069438 | Z74: -54.04023822 | AD74: -110 | AE74: =IF('LOS Range'!$H$18>index+$H$25,'LOS Range'!$H$22,AD74+'LOS Range'!$H$26) -> -93.4 | AO74: 39.35976178 | AP74: 42.22260868 | AT74: 41.67613276 | AU74: 42.22260868
B75: 56 | C75: 42.99029248 | D75: 0.04712689012 | E75: 42.99030127 | F75: 43.03807621 | G75: 0.04777493335 | I75: -0.658856872 | J75: -0.9774081639 | L75: -0.6458983016 | M75: -0.6458983016 | O75: 6.485785894e-09 | P75: 4.263722828e-09 | Q75: 6.32519395e-09 | S75: 3.731854561e-09 | T75: 2.400353865e-09 | V75: -51.88037392 | W75: -54.2807529 | X75: -56.19724729 | Z75: -54.2807529 | AD75: -110 | AE75: =IF('LOS Range'!$H$18>index+$H$25,'LOS Range'!$H$22,AD75+'LOS Range'!$H$26) -> -93.4 | AO75: 39.1192471 | AP75: 42.99029248 | AT75: 41.51962608 | AU75: 42.99029248
B76: 57 | C76: 43.75797627 | D76: 0.04630129424 | E76: 43.75798491 | F76: 43.8049226 | G76: 0.04693768305 | I76: -0.6638244464 | J76: -0.9777992154 | L76: -0.6574439035 | M76: -0.6574439035 | O76: 6.260210789e-09 | P76: 4.146779974e-09 | Q76: 6.108118234e-09 | S76: 3.533935576e-09 | T76: 2.244465695e-09 | V76: -52.03411043 | W76: -54.51741372 | X76: -56.48887028 | Z76: -54.51741372 | AD76: -110 | AE76: =IF('LOS Range'!$H$18>index+$H$25,'LOS Range'!$H$22,AD76+'LOS Range'!$H$26) -> -93.4 | AO76: 38.88258628 | AP76: 43.75797627 | AT76: 41.36588957 | AU76: 43.75797627
B77: 58 | C77: 44.52566007 | D77: 0.04550410723 | E77: 44.52566856 | F77: 44.57179782 | G77: 0.04612925785 | I77: -0.6686496153 | J77: -0.9781769743 | L77: -0.6684474815 | M77: -0.6684474815 | O77: 6.046202476e-09 | P77: 4.034427175e-09 | Q77: 5.902020546e-09 | S77: 3.349399791e-09 | T77: 2.101011706e-09 | V77: -52.18517313 | W77: -54.75033011 | X77: -56.77571528 | Z77: -54.75033011 | AD77: -110 | AE77: =IF('LOS Range'!$H$18>index+$H$25,'LOS Range'!$H$22,AD77+'LOS Range'!$H$26) -> -93.4 | AO77: 38.64966989 | AP77: 44.52566007 | AT77: 41.21482687 | AU77: 44.52566007
B78: 59 | C78: 45.29334386 | D78: 0.04473388853 | E78: 45.29335221 | F78: 45.3387004 | G78: 0.04534819505 | I78: -0.6733384063 | J78: -0.9785421063 | L78: -0.6789414972 | M78: -0.6789414972 | O78: 5.84298345e-09 | P78: 3.926438842e-09 | Q78: 5.706173447e-09 | S78: 3.177161184e-09 | T78: 1.968825506e-09 | V78: -52.33365344 | W78: -54.97960752 | X78: -57.05792773 | Z78: -54.97960752 | AD78: -110 | AE78: =IF('LOS Range'!$H$18>index+$H$25,'LOS Range'!$H$22,AD78+'LOS Range'!$H$26) -> -93.4 | AO78: 38.42039248 | AP78: 45.29334386 | AT78: 41.06634656 | AU78: 45.29334386
B79: 60 | C79: 46.06102766 | D79: 0.04398929329 | E79: 46.06103586 | F79: 46.10562899 | G79: 0.04459312927 | I79: -0.6778965122 | J79: -0.9788952334 | L79: -0.6889561009 | M79: -0.6889561009 | O79: 5.649840455e-09 | P79: 3.822601995e-09 | Q79: 5.519908724e-09 | S79: 3.016235489e-09 | T79: 1.846865663e-09 | V79: -52.47963816 | W79: -55.20534754 | X79: -57.33564693 | Z79: -55.20534754 | AD79: -110 | AE79: =IF('LOS Range'!$H$18>index+$H$25,'LOS Range'!$H$22,AD79+'LOS Range'!$H$26) -> -93.4 | AO79: 38.19465246 | AP79: 46.06102766 | AT79: 40.92036184 | AU79: 46.06102766
B80: 61 | C80: 46.82871145 | D80: 0.04326906456 | E80: 46.82871952 | F80: 46.87258231 | G80: 0.0438627844 | I80: -0.6823293138 | J80: -0.9792369375 | L80: -0.6985193169 | M80: -0.6985193169 | O80: 5.466118213e-09 | P80: 3.722715555e-09 | Q80: 5.342611706e-09 | S80: 2.865729487e-09 | T80: 1.734200734e-09 | V80: -52.6232098 | W80: -55.42764808 | X80: -57.60900634 | Z80: -55.42764808 | AD80: -110 | AE80: =IF('LOS Range'!$H$18>index+$H$25,'LOS Range'!$H$22,AD80+'LOS Range'!$H$26) -> -93.4 | AO80: 37.97235192 | AP80: 46.82871145 | AT80: 40.7767902 | AU80: 46.82871145
B81: 62 | C81: 47.59639524 | D81: 0.04257202623 | E81: 47.59640319 | F81: 47.63955916 | G81: 0.04315596649 | I81: -0.6866419012 | J81: -0.9795677635 | L81: -0.7076572139 | M81: -0.7076572139 | O81: 5.291213865e-09 | P81: 3.626589662e-09 | Q81: 5.173716195e-09 | S81: 2.724831529e-09 | T81: 1.629996277e-09 | V81: -52.76444684 | W81: -55.64660344 | X81: -57.87813388 | Z81: -55.64660344 | AD81: -110 | AE81: =IF('LOS Range'!$H$18>index+$H$25,'LOS Range'!$H$22,AD81+'LOS Range'!$H$26) -> -93.4 | AO81: 37.75339656 | AP81: 47.59639524 | AT81: 40.63555316 | AU81: 47.59639524
B82: 63 | C82: 48.36407904 | D82: 0.04189707666 | E82: 48.36408686 | F82: 48.40655841 | G82: 0.04247155724 | I82: -0.6908390925 | J82: -0.9798882223 | L82: -0.7163940599 | M82: -0.7163940599 | O82: 5.124572011e-09 | P82: 3.534045016e-09 | Q82: 5.012699955e-09 | S82: 2.592803154e-09 | T82: 1.533503538e-09 | V82: -52.903424 | W82: -55.86230454 | X82: -58.14315218 | Z82: -55.86230454 | AD82: -110 | AE82: =IF('LOS Range'!$H$18>index+$H$25,'LOS Range'!$H$22,AD82+'LOS Range'!$H$26) -> -93.4 | AO82: 37.53769546 | AP82: 48.36407904 | AT82: 40.496576 | AU82: 48.36407904
B83: 64 | C83: 49.13176283 | D83: 0.04124318283 | E83: 49.13177053 | F83: 49.17357904 | G83: 0.04180850806 | I83: -0.6949254526 | J83: -0.9801987932 | L83: -0.7247524641 | M83: -0.7247524641 | O83: 4.965680301e-09 | P83: 3.444912264e-09 | Q83: 4.859080685e-09 | S83: 2.468971649e-09 | T83: 1.444049602e-09 | V83: -53.04021244 | W83: -56.07483897 | X83: -58.40417889 | Z83: =IF(pol="Horizontal",X83,W83) -> -56.07483897 | AD83: -110 | AE83: =IF('LOS Range'!$H$18>index+$H$25,'LOS Range'!$H$22,AD83+'LOS Range'!$H$26) -> -93.4 | AO83: =ABS(AE83-Z83) -> 37.32516103 | AP83: 49.13176283 | AT83: 40.35978756 | AU83: 49.13176283
B84: 65 | C84: =D/10000*B84 -> 49.89944663 | D84: 0.04060937512 | E84: 49.8994542 | F84: 49.94062004 | G84: 0.04116583477 | I84: -0.6989053087 | J84: -0.9804999264 | L84: -0.7327535062 | M84: -0.7327535062 | O84: 4.814065493e-09 | P84: 3.359031405e-09 | Q84: 4.712412404e-09 | S84: 2.352723454e-09 | T84: 1.361028782e-09 | V84: -53.17488006 | W84: -56.28429118 | X84: -58.66132691 | Z84: -56.28429118 | AD84: =$AD$19 -> -110 | AE84: =IF('LOS Range'!$H$18>index+$H$25,'LOS Range'!$H$22,AD84+'LOS Range'!$H$26) -> -93.4 | AO84: 37.11570882 | AP84: =D/10000*B84 -> 49.89944663 | AT84: =ABS(AE84-V84) -> 40.22511994 | AU84: =D/10000*B84 -> 49.89944663
B85: 66 | C85: 50.66713042 | D85: 0.03999474252 | E85: 50.66713788 | F85: 50.7076805 | G85: 0.04054261271 | I85: -0.7027827662 | J85: -0.9807920454 | L85: -0.7404168549 | M85: -0.7404168549 | O85: 4.669289921e-09 | P85: 3.276251235e-09 | Q85: 4.572282226e-09 | S85: 2.243498285e-09 | T85: 1.283895095e-09 | V85: -53.30749159 | W85: -56.49074258 | X85: -58.9147046 | Z85: -56.49074258 | AD85: -110 | AE85: =IF('LOS Range'!$H$18>index+$H$25,'LOS Range'!$H$22,AD85+'LOS Range'!$H$26) -> -93.4 | AO85: 36.90925742 | AP85: 50.66713042 | AT85: 40.09250841 | AU85: 50.66713042
B86: =B85+1 -> 67 | C86: 51.43481422 | D86: =ATAN((H_1+H_3)/C86) -> 0.03939842827 | E86: =SQRT(ABS(H_1-H_3)^2+C86^2) -> 51.43482157 | F86: =SQRT(C86^2+(H_1+H_3)^2) -> 51.47475954 | G86: =F86-E86 -> 0.0399379723 | I86: =(er*SIN(D86)-SQRT(er-COS(D86)^2))/(er*SIN(D86)+SQRT(er-COS(D86)^2)) -> -0.7065617223 | J86: =(SIN(D86)-SQRT(er-COS(D86)^2))/(SIN(D86)+SQRT(er-COS(D86)^2)) -> -0.9810755487 | L86: =COS(G86*2*PI()/lambda)*SIGN(I86) -> -0.7477608765 | M86: =COS(G86*2*PI()/lambda)*SIGN(J86) -> -0.7477608765 | O86: =Pt_w*Gt_m*Gr_m*lambda^2/((4*PI()*E86)^2) -> 4.530948334e-09 | P86: =Pt_w*Gt_m*Gr_m*lambda^2/((4*PI()*F86)^2)*ABS(I86) -> 3.196428823e-09 | Q86: =Pt_w*Gt_m*Gr_m*lambda^2/((4*PI()*F86)^2)*ABS(J86) -> 4.438307457e-09 | S86: =O86+L86*P86 -> 2.140783916e-09 | T86: =O86+M86*Q86 -> 1.21215566e-09 | V86: =10*LOG10(O86*1000) -> -53.4381089 | W86: =10*LOG10(S86*1000) -> -56.69427167 | X86: =10*LOG10(T86*1000) -> -59.16441606 | Z86: -56.69427167 | AD86: -110 | AE86: =IF('LOS Range'!$H$18>index+$H$25,'LOS Range'!$H$22,AD86+'LOS Range'!$H$26) -> -93.4 | AO86: 36.70572833 | AP86: 51.43481422 | AT86: 39.9618911 | AU86: 51.43481422
B87: 68 | C87: 52.20249801 | D87: 0.03881962586 | E87: 52.20250525 | F87: 52.24185635 | G87: 0.03935109504 | I87: -0.7102458793 | J87: -0.9813508114 | L87: -0.7548027339 | M87: -0.7548027339 | O87: 4.398665061e-09 | P87: 3.119429009e-09 | Q87: 4.310132981e-09 | S87: 2.044111517e-09 | T87: 1.145364903e-09 | V87: -53.56679106 | W87: -56.89495415 | X87: -59.41056129 | Z87: -56.89495415 | AD87: -110 | AE87: =IF('LOS Range'!$H$18>index+$H$25,'LOS Range'!$H$22,AD87+'LOS Range'!$H$26) -> -93.4 | AO87: 36.50504585 | AP87: 52.20249801 | AT87: 39.83320894 | AU87: 52.20249801
B88: 69 | C88: 52.9701818 | D88: 0.03825757542 | E88: 52.97018894 | F88: 53.00897015 | G88: 0.03878120977 | I88: -0.7138387565 | J88: -0.9816181876 | L88: -0.761558477 | M88: -0.761558477 | O88: 4.272091452e-09 | P88: 3.045123948e-09 | Q88: 4.187428917e-09 | S88: 1.953051496e-09 | T88: 1.083119464e-09 | V88: -53.69359459 | W88: -57.09286306 | X88: -59.6532364 | Z88: -57.09286306 | AD88: -110 | AE88: =IF('LOS Range'!$H$18>index+$H$25,'LOS Range'!$H$22,AD88+'LOS Range'!$H$26) -> -93.4 | AO88: 36.30713694 | AP88: 52.9701818 | AT88: 39.70640541 | AU88: 52.9701818
B89: 70 | C89: 53.7378656 | D89: 0.0377115604 | E89: 53.73787263 | F89: 53.77610022 | G89: 0.03822758931 | I89: -0.7173437012 | J89: -0.9818780111 | L89: -0.7680431267 | M89: -0.7680431267 | O89: 4.150903584e-09 | P89: 2.973392662e-09 | Q89: 4.06988849e-09 | S89: 1.867209787e-09 | T89: 1.025053702e-09 | V89: -53.81857354 | W89: -57.28806885 | X89: -59.89253382 | Z89: -57.28806885 | AD89: -110 | AE89: =IF('LOS Range'!$H$18>index+$H$25,'LOS Range'!$H$22,AD89+'LOS Range'!$H$26) -> -93.4 | AO89: 36.11193115 | AP89: 53.7378656 | AT89: 39.58142646 | AU89: 53.7378656
B90: 71 | C90: 54.50554939 | D90: 0.03718090454 | E90: 54.50555633 | F90: 54.54324588 | G90: 0.0376895474 | I90: -0.7207638993 | J90: -0.9821305972 | L90: -0.7742707504 | M90: -0.7742707504 | O90: 4.03480018e-09 | P90: 2.904120635e-09 | Q90: 3.957226126e-09 | S90: 1.786224517e-09 | T90: 9.708357378e-10 | V90: -53.94177968 | W90: -57.48063954 | X90: -60.12854245 | Z90: -57.48063954 | AD90: -110 | AE90: =IF('LOS Range'!$H$18>index+$H$25,'LOS Range'!$H$22,AD90+'LOS Range'!$H$26) -> -93.4 | AO90: 35.91936046 | AP90: 54.50554939 | AT90: 39.45822032 | AU90: 54.50554939
B91: 72 | C91: 55.27323319 | D91: 0.03666496902 | E91: 55.27324003 | F91: 55.31040646 | G91: 0.03716643582 | I91: -0.7241023847 | J91: -0.9823762439 | L91: -0.7802545323 | M91: -0.7802545323 | O91: 3.923500743e-09 | P91: 2.837199423e-09 | Q91: 3.849175712e-09 | S91: 1.709763034e-09 | T91: 9.201639478e-10 | V91: -54.06326261 | W91: -57.67064077 | X91: -60.36134786 | Z91: -57.67064077 | AD91: -110 | AE91: =IF('LOS Range'!$H$18>index+$H$25,'LOS Range'!$H$22,AD91+'LOS Range'!$H$26) -> -93.4 | AO91: 35.72935923 | AP91: 55.27323319 | AT91: 39.33673739 | AU91: 55.27323319
B92: 73 | C92: 56.04091698 | D92: 0.03616314998 | E92: 56.04092373 | F92: 56.07758137 | G92: 0.03665764181 | I92: -0.7273620485 | J92: -0.9826152332 | L92: -0.7860068376 | M92: -0.7860068376 | O92: 3.816743852e-09 | P92: 2.772526296e-09 | Q92: 3.745489029e-09 | S92: 1.637519226e-09 | T92: 8.727638654e-10 | V92: -54.18306985 | W92: -57.85813592 | X92: -60.59103243 | Z92: -57.85813592 | AD92: -110 | AE92: =IF('LOS Range'!$H$18>index+$H$25,'LOS Range'!$H$22,AD92+'LOS Range'!$H$26) -> -93.4 | AO92: 35.54186408 | AP92: 56.04091698 | AT92: 39.21693015 | AU92: 56.04091698
B93: 74 | C93: 56.80860078 | D93: 0.03567487614 | E93: 56.80860743 | F93: 56.84477002 | G93: 0.03616258568 | I93: -0.7305456471 | J93: -0.9828478318 | L93: -0.7915392714 | M93: -0.7915392714 | O93: 3.714285632e-09 | P93: 2.710003895e-09 | Q93: 3.645934327e-09 | S93: 1.569211123e-09 | T93: 8.283854312e-10 | V93: -54.30124702 | W93: -58.04318622 | X93: -60.81767548 | Z93: -58.04318622 | AD93: -110 | AE93: =IF('LOS Range'!$H$18>index+$H$25,'LOS Range'!$H$22,AD93+'LOS Range'!$H$26) -> -93.4 | AO93: 35.35681378 | AP93: 56.80860078 | AT93: 39.09875298 | AU93: 56.80860078
B94: 75 | C94: 57.57628457 | D94: 0.03519960658 | E94: 57.57629114 | F94: 57.61197186 | G94: 0.03568071862 | I94: -0.73365581 | J94: -0.9830742926 | L94: -0.796862733 | M94: -0.796862733 | O94: 3.615898355e-09 | P94: 2.649539916e-09 | Q94: 3.550295033e-09 | S94: 1.504578737e-09 | T94: 7.868005519e-10 | V94: -54.41783786 | W94: -58.2258508 | X94: -61.04135344 | Z94: -58.2258508 | AD94: -110 | AE94: =IF('LOS Range'!$H$18>index+$H$25,'LOS Range'!$H$22,AD94+'LOS Range'!$H$26) -> -93.4 | AO94: 35.1741492 | AP94: 57.57628457 | AT94: 38.98216214 | AU94: 57.57628457
B95: 76 | C95: 58.34396836 | D95: 0.03473682882 | E95: 58.34397484 | F95: 58.37918637 | G95: 0.03521152064 | I95: -0.7366950469 | J95: -0.9832948552 | L95: -0.8019874656 | M95: -0.8019874656 | O95: 3.521369177e-09 | P95: 2.591046811e-09 | Q95: 3.458368574e-09 | S95: 1.443382112e-09 | T95: 7.478009291e-10 | V95: -54.53288441 | W95: -58.40618681 | X95: -61.26214 | Z95: -58.40618681 | AD95: -110 | AE95: =IF('LOS Range'!$H$18>index+$H$25,'LOS Range'!$H$22,AD95+'LOS Range'!$H$26) -> -93.4 | AO95: 34.99381319 | AP95: 58.34396836 | AT95: 38.86711559 | AU95: 58.34396836
B96: 77 | C96: 59.11165216 | D96: 0.03428605696 | E96: 59.11165855 | F96: 59.14641305 | G96: 0.03475449873 | I96: -0.7396657546 | J96: -0.983509747 | L96: -0.8069231026 | M96: -0.8069231026 | O96: 3.430498985e-09 | P96: 2.534441512e-09 | Q96: 3.369965305e-09 | S96: 1.385399577e-09 | T96: 7.11196126e-10 | V96: -54.64642705 | W96: -58.58424949 | X96: -61.48010618 | Z96: -58.58424949 | AD96: -110 | AE96: =IF('LOS Range'!$H$18>index+$H$25,'LOS Range'!$H$22,AD96+'LOS Range'!$H$26) -> -93.4 | AO96: 34.81575051 | AP96: 59.11165216 | AT96: 38.75357295 | AU96: 59.11165216
B97: 78 | C97: 59.87933595 | D97: 0.03384682994 | E97: 59.87934227 | F97: 59.91365145 | G97: 0.03430918514 | I97: -0.7425702232 | J97: -0.9837191836 | L97: -0.8116787094 | M97: -0.8116787094 | O97: 3.343101347e-09 | P97: 2.479645165e-09 | Q97: 3.28490753e-09 | S97: 1.33042616e-09 | T97: 6.768118432e-10 | V97: -54.75850457 | W97: -58.76009224 | X97: -61.6953205 | Z97: -58.76009224 | AD97: -110 | AE97: =IF('LOS Range'!$H$18>index+$H$25,'LOS Range'!$H$22,AD97+'LOS Range'!$H$26) -> -93.4 | AO97: 34.63990776 | AP97: 59.87933595 | AT97: 38.64149543 | AU97: 59.87933595
B98: 79 | C98: 60.64701975 | D98: 0.03341871002 | E98: 60.64702598 | F98: 60.68090112 | G98: 0.03387513574 | I98: -0.7454106421 | J98: -0.9839233701 | L98: -0.8162628227 | M98: -0.8162628227 | O98: 3.259001555e-09 | P98: 2.42658289e-09 | Q98: 3.203028612e-09 | S98: 1.278272156e-09 | T98: 6.444883786e-10 | V98: -54.86915432 | W98: -58.93376671 | X98: -61.90784909 | Z98: -58.93376671 | AD98: -110 | AE98: =IF('LOS Range'!$H$18>index+$H$25,'LOS Range'!$H$22,AD98+'LOS Range'!$H$26) -> -93.4 | AO98: 34.46623329 | AP98: 60.64701975 | AT98: 38.53084568 | AU98: 60.64701975
B99: 80 | C99: 61.41470354 | D99: 0.03300128129 | E99: 61.4147097 | F99: 61.44816163 | G99: 0.03345192861 | I99: -0.7481891051 | J99: -0.9841225014 | L99: -0.8206834864 | M99: -0.8206834864 | O99: 3.178035751e-09 | P99: 2.375183546e-09 | Q99: 3.12417216e-09 | S99: 1.228761838e-09 | T99: 6.140792505e-10 | V99: -54.97841222 | W99: -59.10532285 | X99: -62.11775577 | Z99: -59.10532285 | AD99: -110 | AE99: =IF('LOS Range'!$H$18>index+$H$25,'LOS Range'!$H$22,AD99+'LOS Range'!$H$26) -> -93.4 | AO99: 34.29467715 | AP99: 61.41470354 | AT99: 38.42158778 | AU99: 61.41470354
B100: 81 | C100: 62.18238734 | D100: 0.03259414836 | E100: 62.18239342 | F100: 62.21543258 | G100: 0.0330391626 | I100: -0.750907616 | J100: -0.9843167627 | L100: -0.8249482848 | M100: -0.8249482848 | O100: 3.100050131e-09 | P100: 2.325379525e-09 | Q100: 3.048191278e-09 | S100: 1.181732281e-09 | T100: 5.854499644e-10 | V100: -55.08631283 | W100: -59.27480901 | X100: -62.32510216 | Z100: -59.27480901 | AD100: -110 | AE100: =IF('LOS Range'!$H$18>index+$H$25,'LOS Range'!$H$22,AD100+'LOS Range'!$H$26) -> -93.4 | AO100: 34.12519099 | AP100: 62.18238734 | AT100: 38.31368717 | AU100: 62.18238734
B101: 82 | C101: 62.95007113 | D101: 0.03219693509 | E101: 62.95007714 | F101: 62.98271359 | G101: 0.03263645613 | I101: -0.7535680932 | J101: -0.9845063306 | L101: -0.8290643731 | M101: -0.8290643731 | O101: 3.024900209e-09 | P101: 2.27710654e-09 | Q101: 2.974947883e-09 | S101: 1.137032303e-09 | T101: 5.584769074e-10 | V101: -55.19288948 | W101: -59.44227197 | X101: -62.5299478 | Z101: -59.44227197 | AD101: -110 | AE101: =IF('LOS Range'!$H$18>index+$H$25,'LOS Range'!$H$22,AD101+'LOS Range'!$H$26) -> -93.4 | AO101: 33.95772803 | AP101: 62.95007113 | AT101: 38.20711052 | AU101: 62.95007113
B102: 83 | C102: 63.71775492 | D102: 0.03180928342 | E102: 63.71776086 | F102: 63.7500043 | G102: 0.03224344598 | I102: -0.756172374 | J102: -0.9846913728 | L102: -0.833038506 | M102: -0.833038506 | O102: 2.952450152e-09 | P102: 2.230303444e-09 | Q102: 2.90431208e-09 | S102: 1.094521503e-09 | T102: 5.33046356e-10 | V102: -55.29817426 | W102: -59.60775702 | X102: -62.73235021 | Z102: -59.60775702 | AD102: -110 | AE102: =IF('LOS Range'!$H$18>index+$H$25,'LOS Range'!$H$22,AD102+'LOS Range'!$H$26) -> -93.4 | AO102: 33.79224298 | AP102: 63.71775492 | AT102: 38.10182574 | AU102: 63.71775492
B103: 84 | C103: 64.48543872 | D103: 0.03143085232 | E103: 64.48544458 | F103: 64.51730437 | G103: 0.03185978619 | I103: -0.7587222192 | J103: -0.9848720496 | L103: -0.8368770638 | M103: -0.8368770638 | O103: 2.882572164e-09 | P103: 2.184912053e-09 | Q103: 2.836161585e-09 | S103: 1.05406938e-09 | T103: 5.090535836e-10 | V103: -55.40219812 | W103: -59.77130802 | X103: -62.93236501 | Z103: -59.77130802 | AD103: -110 | AE103: =IF('LOS Range'!$H$18>index+$H$25,'LOS Range'!$H$22,AD103+'LOS Range'!$H$26) -> -93.4 | AO103: 33.62869198 | AP103: 64.48543872 | AT103: 37.99780188 | AU103: 64.48543872
B104: 85 | C104: 65.25312251 | D104: 0.0310613168 | E104: 65.25312831 | F104: 65.28461345 | G104: 0.03148514709 | I104: -0.7612193166 | J104: -0.9850485136 | L104: -0.8405860768 | M104: -0.8405860768 | O104: 2.81514592e-09 | P104: 2.140876975e-09 | Q104: 2.770381198e-09 | S104: 1.015554543e-09 | T104: 4.864020579e-10 | V104: -55.50499089 | W104: -59.93296747 | X104: -63.13004596 | Z104: -59.93296747 | AD104: -110 | AE104: =IF('LOS Range'!$H$18>index+$H$25,'LOS Range'!$H$22,AD104+'LOS Range'!$H$26) -> -93.4 | AO104: 33.46703253 | AP104: 65.25312251 | AT104: 37.89500911 | AU104: 65.25312251
B105: 86 | C105: 66.02080631 | D105: 0.03070036693 | E105: 66.02081203 | F105: 66.05193125 | G105: 0.03111921429 | I105: -0.7636652853 | J105: -0.9852209102 | L105: -0.8441712474 | M105: -0.8441712474 | O105: 2.750058053e-09 | P105: 2.09814546e-09 | Q105: 2.706862312e-09 | S105: 9.788639822e-10 | T105: 4.650027179e-10 | V105: -55.60658138 | W105: -60.09277651 | X105: -63.32544509 | Z105: -60.09277651 | AD105: -110 | AE105: =IF('LOS Range'!$H$18>index+$H$25,'LOS Range'!$H$22,AD105+'LOS Range'!$H$26) -> -93.4 | AO105: 33.30722349 | AP105: 66.02080631 | AT105: 37.79341862 | AU105: 66.02080631
B106: 87 | C106: 66.7884901 | D106: 0.03034770703 | E106: 66.78849576 | F106: 66.81925745 | G106: 0.03076168786 | I106: -0.7660616787 | J106: -0.9853893785 | L106: -0.8476379715 | M106: -0.8476379715 | O106: 2.68720167e-09 | P106: 2.056667251e-09 | Q106: 2.645502472e-09 | S106: 9.438924127e-10 | T106: 4.44773321e-10 | V106: -55.70699739 | W106: -60.25077505 | X106: -63.51861271 | Z106: -60.25077505 | AD106: -110 | AE106: =IF('LOS Range'!$H$18>index+$H$25,'LOS Range'!$H$22,AD106+'LOS Range'!$H$26) -> -93.4 | AO106: 33.14922495 | AP106: 66.7884901 | AT106: 37.69300261 | AU106: 66.7884901
B107: 88 | C107: 67.5561739 | D107: 0.03000305483 | E107: 67.55617949 | F107: 67.58659177 | G107: 0.03041228148 | I107: -0.768409988 | J107: -0.9855540511 | L107: -0.8509913575 | M107: -0.8509913575 | O107: 2.626475919e-09 | P107: 2.016394449e-09 | Q107: 2.586204955e-09 | S107: 9.105416693e-10 | T107: 4.25637854e-10 | V107: -55.80626577 | W107: -60.40700175 | X107: -63.70959755 | Z107: -60.40700175 | AD107: -110 | AE107: =IF('LOS Range'!$H$18>index+$H$25,'LOS Range'!$H$22,AD107+'LOS Range'!$H$26) -> -93.4 | AO107: 32.99299825 | AP107: 67.5561739 | AT107: 37.59373423 | AU107: 67.5561739
B108: 89 | C108: 68.32385769 | D108: 0.02966614073 | E108: 68.32386322 | F108: 68.35393395 | G108: 0.03007072169 | I108: -0.7707116451 | J108: -0.9857150548 | L108: -0.8542362442 | M108: -0.8542362442 | O108: 2.567785582e-09 | P108: 1.977281383e-09 | Q108: 2.528878394e-09 | S108: 8.78720159e-10 | T108: 4.075260005e-10 | V108: -55.90441244 | W108: -60.5614941 | X108: -63.89844678 | Z108: -60.5614941 | AD108: -110 | AE108: =IF('LOS Range'!$H$18>index+$H$25,'LOS Range'!$H$22,AD108+'LOS Range'!$H$26) -> -93.4 | AO108: 32.8385059 | AP108: 68.32385769 | AT108: 37.49558756 | AU108: 68.32385769
B109: 90 | C109: 69.09154148 | D109: 0.0293367071 | E109: 69.09154696 | F109: 69.1212837 | G109: 0.02973674716 | I109: -0.7729680258 | J109: -0.9858725109 | L109: -0.8573772177 | M109: -0.8573772177 | O109: 2.511040699e-09 | P109: 1.939284491e-09 | Q109: 2.473436425e-09 | S109: 8.483423582e-10 | T109: 3.90372659e-10 | V109: -56.00146248 | W109: -60.71428848 | X109: -64.08520607 | Z109: -60.71428848 | AD109: -110 | AE109: =IF('LOS Range'!$H$18>index+$H$25,'LOS Range'!$H$22,AD109+'LOS Range'!$H$26) -> -93.4 | AO109: 32.68571152 | AP109: 69.09154148 | AT109: 37.39853752 | AU109: 69.09154148
B110: 91 | C110: 69.85922528 | D110: 0.02901450761 | E110: 69.85923069 | F110: 69.8886408 | G110: 0.02941010805 | I110: -0.7751804522 | J110: -0.9860265352 | L110: -0.8604186269 | M110: -0.8604186269 | O110: 2.456156229e-09 | P110: 1.902362204e-09 | Q110: 2.419797362e-09 | S110: 8.193283534e-10 | T110: 3.741175057e-10 | V110: -56.09744012 | W110: -60.86542016 | X110: -64.2699197 | Z110: -60.86542016 | AD110: -110 | AE110: =IF('LOS Range'!$H$18>index+$H$25,'LOS Range'!$H$22,AD110+'LOS Range'!$H$26) -> -93.4 | AO110: 32.53457984 | AP110: 69.85922528 | AT110: 37.30255988 | AU110: 69.85922528
B111: 92 | C111: 70.62690907 | D111: 0.02869930662 | E111: 70.62691443 | F111: 70.65600499 | G111: 0.02909056535 | I111: -0.7773501956 | J111: -0.9861772387 | L111: -0.8633645977 | M111: -0.8633645977 | O111: 2.403051725e-09 | P111: 1.866474845e-09 | Q111: 2.367883895e-09 | S111: 7.916034217e-10 | T111: 3.587045991e-10 | V111: -56.19236881 | W111: -61.01492337 | X111: -64.45263055 | Z111: -61.01492337 | AD111: -110 | AE111: =IF('LOS Range'!$H$18>index+$H$25,'LOS Range'!$H$22,AD111+'LOS Range'!$H$26) -> -93.4 | AO111: 32.38507663 | AP111: 70.62690907 | AT111: 37.20763119 | AU111: 70.62690907
B112: 93 | C112: 71.39459287 | D112: 0.02839087863 | E112: 71.39459816 | F112: 71.42337605 | G112: 0.02877789034 | I112: -0.7794784788 | J112: -0.9863247277 | L112: -0.8662190465 | M112: -0.8662190465 | O112: 2.351651043e-09 | P112: 1.831584522e-09 | Q112: 2.317622813e-09 | S112: 7.650976449e-10 | T112: 3.440820198e-10 | V112: -56.28627122 | W112: -61.16283135 | X112: -64.63338021 | Z112: -61.16283135 | AD112: -110 | AE112: =IF('LOS Range'!$H$18>index+$H$25,'LOS Range'!$H$22,AD112+'LOS Range'!$H$26) -> -93.4 | AO112: 32.23716865 | AP112: 71.39459287 | AT112: 37.11372878 | AU112: 71.39459287
B113: 94 | C113: 72.16227666 | D113: 0.0280890077 | E113: 72.1622819 | F113: 72.19075376 | G113: 0.028471864 | I113: -0.7815664781 | J113: -0.9864691037 | L113: -0.8689856928 | M113: -0.8689856928 | O113: 2.301882066e-09 | P113: 1.797655038e-09 | Q113: 2.268944746e-09 | S113: 7.397455571e-10 | T113: 3.302015438e-10 | V113: -56.37916931 | W113: -61.30917635 | X113: -64.81220901 | Z113: -61.30917635 | AD113: -110 | AE113: =IF('LOS Range'!$H$18>index+$H$25,'LOS Range'!$H$22,AD113+'LOS Range'!$H$26) -> -93.4 | AO113: 32.09082365 | AP113: 72.16227666 | AT113: 37.02083069 | AU113: 72.16227666
B114: 95 | C114: 72.92996045 | D114: 0.02779348699 | E114: 72.92996564 | F114: 72.95813792 | G114: 0.02817227656 | I114: -0.7836153261 | J114: -0.9866104644 | L114: -0.8716680709 | M114: -0.8716680709 | O114: 2.253676454e-09 | P114: 1.764651803e-09 | Q114: 2.221783925e-09 | S114: 7.154858204e-10 | T114: 3.170183456e-10 | V114: -56.47108433 | W114: -61.45398969 | X114: -64.98915605 | Z114: -61.45398969 | AD114: -110 | AE114: =IF('LOS Range'!$H$18>index+$H$25,'LOS Range'!$H$22,AD114+'LOS Range'!$H$26) -> -93.4 | AO114: 31.94601031 | AP114: 72.92996045 | AT114: 36.92891567 | AU114: 72.92996045
B115: 96 | C115: 73.69764425 | D115: 0.02750411825 | E115: 73.69764938 | F115: 73.72552831 | G115: 0.02787892694 | I115: -0.7856261131 | J115: -0.9867489031 | L115: -0.8742695404 | M115: -0.8742695404 | O115: 2.206969407e-09 | P115: 1.73254175e-09 | Q115: 2.176077962e-09 | S115: 6.922609275e-10 | T115: 3.044907271e-10 | V115: -56.56203687 | W115: -61.5973018 | X115: -65.16425929 | Z115: -61.5973018 | AD115: -110 | AE115: =IF('LOS Range'!$H$18>index+$H$25,'LOS Range'!$H$22,AD115+'LOS Range'!$H$26) -> -93.4 | AO115: 31.8026982 | AP115: 73.69764425 | AT115: 36.83796313 | AU115: 73.69764425
B116: 97 | C116: 74.46532804 | D116: 0.02722071141 | E116: 74.46533312 | F116: 74.49292474 | G116: 0.02759162237 | I116: -0.7875998895 | J116: -0.9868845095 | L116: -0.8767932968 | M116: -0.8767932968 | O116: 2.161699449e-09 | P116: 1.701293254e-09 | Q116: 2.131767641e-09 | S116: 6.70016928e-10 | T116: 2.925798711e-10 | V116: -56.65204688 | W116: -61.73914225 | X116: -65.33755556 | Z116: -61.73914225 | AD116: -110 | AE116: =IF('LOS Range'!$H$18>index+$H$25,'LOS Range'!$H$22,AD116+'LOS Range'!$H$26) -> -93.4 | AO116: 31.66085775 | AP116: 74.46532804 | AT116: 36.74795312 | AU116: 74.46532804
B117: 98 | C117: 75.23301184 | D117: 0.02694308415 | E117: 75.23301686 | F117: 75.26032704 | G117: 0.02731017793 | I117: -0.7895376671 | J117: -0.9870173696 | L117: -0.8792423805 | M117: -0.8792423805 | O117: 2.117808222e-09 | P117: 1.670876061e-09 | Q117: 2.088796726e-09 | S117: 6.487031772e-10 | T117: 2.812496163e-10 | V117: -56.7411337 | W117: -61.87953975 | X117: -65.50908061 | Z117: -61.87953975 | AD117: -110 | AE117: =IF('LOS Range'!$H$18>index+$H$25,'LOS Range'!$H$22,AD117+'LOS Range'!$H$26) -> -93.4 | AO117: 31.52046025 | AP117: 75.23301184 | AT117: 36.6588663 | AU117: 75.23301184
B118: 99 | C118: 76.00069563 | D118: 0.02667106149 | E118: 76.00070061 | F118: 76.02773502 | G118: 0.02703441618 | I118: -0.7914404216 | J118: -0.9871475659 | L118: -0.8816196862 | M118: -0.8816196862 | O118: 2.075240304e-09 | P118: 1.641261219e-09 | Q118: 2.047111789e-09 | S118: 6.282721037e-10 | T118: 2.704662515e-10 | V118: -56.82931607 | W118: -62.01852223 | X118: -65.67886918 | Z118: -62.01852223 | AD118: -110 | AE118: =IF('LOS Range'!$H$18>index+$H$25,'LOS Range'!$H$22,AD118+'LOS Range'!$H$26) -> -93.4 | AO118: 31.38147777 | AP118: 76.00069563 | AT118: 36.57068393 | AU118: 76.00069563
B119: 100 | C119: 76.76837943 | D119: 0.02640447545 | E119: 76.76838435 | F119: 76.79514852 | G119: 0.02676416675 | I119: -0.7933090935 | J119: -0.9872751778 | L119: -0.8839279706 | M119: -0.8839279706 | O119: 2.033943028e-09 | P119: 1.61242101e-09 | Q119: 2.006662034e-09 | S119: 6.086789968e-10 | T119: 2.601983283e-10 | V119: -56.91661216 | W119: -62.15611684 | X119: -65.84695498 | Z119: -62.15611684 | AD119: -110 | AE119: =IF('LOS Range'!$H$18>index+$H$25,'LOS Range'!$H$22,AD119+'LOS Range'!$H$26) -> -93.4 | AO119: 31.24388316 | AP119: 76.76837943 | AT119: 36.48338784 | AU119: 76.76837943
B120: 101 | C120: 77.53606322 | D120: 0.02614316469 | E120: 77.5360681 | F120: 77.56256736 | G120: 0.02649926602 | I120: -0.7951445899 | J120: -0.9874002814 | L120: -0.8861698603 | M120: -0.8861698603 | O120: 1.99386632e-09 | P120: 1.58432889e-09 | Q120: 1.967399151e-09 | S120: 5.898818091e-10 | T120: 2.504164887e-10 | V120: -57.00303963 | W120: -62.29234997 | X120: -66.01337078 | Z120: -62.29234997 | AD120: -110 | AE120: =IF('LOS Range'!$H$18>index+$H$25,'LOS Range'!$H$22,AD120+'LOS Range'!$H$26) -> -93.4 | AO120: 31.10765003 | AP120: 77.53606322 | AT120: 36.39696037 | AU120: 77.53606322
B121: 102 | C121: 78.30374701 | D121: 0.02588697421 | E121: 78.30375184 | F121: 78.3299914 | G121: 0.02623955678 | I121: -0.7969477863 | J121: -0.9875229499 | L121: -0.8883478592 | M121: -0.8883478592 | O121: 1.954962551e-09 | P121: 1.556959429e-09 | Q121: 1.929277168e-09 | S121: 5.718409749e-10 | T121: 2.410933083e-10 | V121: -57.08861558 | W121: -62.42724729 | X121: -66.17814844 | Z121: -62.42724729 | AD121: -110 | AE121: =IF('LOS Range'!$H$18>index+$H$25,'LOS Range'!$H$22,AD121+'LOS Range'!$H$26) -> -93.4 | AO121: 30.97275271 | AP121: 78.30374701 | AT121: 36.31138442 | AU121: 78.30374701
B122: 103 | C122: 79.07143081 | D122: 0.02563575501 | E122: 79.07143559 | F122: 79.09742048 | G122: 0.02598488794 | I122: -0.7987195273 | J122: -0.9876432538 | L122: -0.8904643553 | M122: -0.8904643553 | O122: 1.917186391e-09 | P122: 1.53028826e-09 | Q122: 1.892252317e-09 | S122: 5.545192428e-10 | T122: 2.322031521e-10 | V122: -57.17335662 | W122: -62.56083378 | X122: -66.34131889 | Z122: -62.56083378 | AD122: -110 | AE122: =IF('LOS Range'!$H$18>index+$H$25,'LOS Range'!$H$22,AD122+'LOS Range'!$H$26) -> -93.4 | AO122: 30.83916622 | AP122: 79.07143081 | AT122: 36.22664338 | AU122: 79.07143081
B123: 104 | C123: 79.8391146 | D123: 0.02538936379 | E123: 79.83911934 | F123: 79.86485445 | G123: 0.02573511418 | I123: -0.8004606286 | J123: -0.9877612606 | L123: -0.8925216267 | M123: -0.8925216267 | O123: 1.880494681e-09 | P123: 1.50429202e-09 | Q123: 1.856282906e-09 | S123: 5.378815206e-10 | T123: 2.237220423e-10 | V123: -57.25727891 | W123: -62.69313376 | X123: -66.50291225 | Z123: -62.69313376 | AD123: -110 | AE123: =IF('LOS Range'!$H$18>index+$H$25,'LOS Range'!$H$22,AD123+'LOS Range'!$H$26) -> -93.4 | AO123: 30.70686624 | AP123: 79.8391146 | AT123: 36.14272109 | AU123: 79.8391146
B124: 105 | C124: 80.6067984 | D124: 0.02514766275 | E124: 80.60680309 | F124: 80.63229318 | G124: 0.02549009573 | I124: -0.8021718779 | J124: -0.9878770356 | L124: -0.8945218477 | M124: -0.8945218477 | O124: 1.844846306e-09 | P124: 1.478948309e-09 | Q124: 1.821329208e-09 | S124: 5.218947315e-10 | T124: 2.15627537e-10 | V124: -57.34039809 | W124: -62.82417087 | X124: -66.66295778 | Z124: -62.82417087 | AD124: -110 | AE124: =IF('LOS Range'!$H$18>index+$H$25,'LOS Range'!$H$22,AD124+'LOS Range'!$H$26) -> -93.4 | AO124: 30.57582913 | AP124: 80.6067984 | AT124: 36.05960191 | AU124: 80.6067984
B125: 106 | C125: 81.37448219 | D125: 0.02491051925 | E125: 81.37448684 | F125: 81.39973654 | G125: 0.02524969811 | I125: -0.8038540361 | J125: -0.9879906414 | L125: -0.8964670946 | M125: -0.8964670946 | O125: 1.810202079e-09 | P125: 1.454235638e-09 | Q125: 1.787353345e-09 | S125: 5.065276822e-10 | T125: 2.078986189e-10 | V125: -57.42272941 | W125: -62.95396815 | X125: -66.82148396 | Z125: -62.95396815 | AD125: -110 | AE125: =IF('LOS Range'!$H$18>index+$H$25,'LOS Range'!$H$22,AD125+'LOS Range'!$H$26) -> -93.4 | AO125: 30.44603185 | AP125: 81.37448219 | AT125: 35.97727059 | AU125: 81.37448219
B126: 107 | C126: 82.14216599 | D126: 0.02467780561 | E126: 82.14217059 | F126: 82.16718438 | G126: 0.02501379182 | I126: -0.8055078384 | J126: -0.9881021384 | L126: -0.8983593507 | M126: -0.8983593507 | O126: 1.77652464e-09 | P126: 1.430133387e-09 | Q126: 1.754319189e-09 | S126: 4.917509395e-10 | T126: 2.005155929e-10 | V126: -57.50428764 | W126: -63.08254802 | X126: -66.97851849 | Z126: -63.08254802 | AD126: -110 | AE126: =IF('LOS Range'!$H$18>index+$H$25,'LOS Range'!$H$22,AD126+'LOS Range'!$H$26) -> -93.4 | AO126: 30.31745198 | AP126: 82.14216599 | AT126: 35.89571236 | AU126: 82.14216599
B127: 108 | C127: 82.90984978 | D127: 0.02444939889 | E127: 82.90985434 | F127: 82.93463659 | G127: 0.0247822522 | I127: -0.8071339956 | J127: -0.9882115848 | L127: -0.9002005112 | M127: -0.9002005112 | O127: 1.743778348e-09 | P127: 1.406621764e-09 | Q127: 1.722192264e-09 | S127: 4.775367165e-10 | T127: 1.934599917e-10 | V127: -57.58508719 | W127: -63.20993231 | X127: -67.13408835 | Z127: -63.20993231 | AD127: -110 | AE127: =IF('LOS Range'!$H$18>index+$H$25,'LOS Range'!$H$22,AD127+'LOS Range'!$H$26) -> -93.4 | AO127: 30.19006769 | AP127: 82.90984978 | AT127: 35.81491281 | AU127: 82.90984978
B128: 109 | C128: 83.67753357 | D128: 0.02422518063 | E128: 83.67753809 | F128: 83.70209305 | G128: 0.02455495912 | I128: -0.8087331948 | J128: -0.9883190367 | L128: -0.9019923879 | M128: -0.9019923879 | O128: 1.711929189e-09 | P128: 1.383681767e-09 | Q128: 1.690939657e-09 | S128: 4.638587673e-10 | T128: 1.867144894e-10 | V128: -57.66514203 | W128: -63.3361423 | X128: -67.28821979 | Z128: -63.3361423 | AD128: -110 | AE128: =IF('LOS Range'!$H$18>index+$H$25,'LOS Range'!$H$22,AD128+'LOS Range'!$H$26) -> -93.4 | AO128: 30.0638577 | AP128: 83.67753357 | AT128: 35.73485797 | AU128: 83.67753357
B129: 110 | C129: 84.44521737 | D129: 0.02400503669 | E129: 84.44522185 | F129: 84.46955364 | G129: 0.02433179684 | I129: -0.8103061007 | J129: -0.988424548 | L129: -0.9037367136 | M129: -0.9037367136 | O129: 1.680944688e-09 | P129: 1.361295144e-09 | Q129: 1.660529936e-09 | S129: 4.506922889e-10 | T129: 1.802628216e-10 | V129: -57.74446577 | W129: -63.46119872 | X129: -67.44093835 | Z129: -63.46119872 | AD129: -110 | AE129: =IF('LOS Range'!$H$18>index+$H$25,'LOS Range'!$H$22,AD129+'LOS Range'!$H$26) -> -93.4 | AO129: 29.93880128 | AP129: 84.44521737 | AT129: 35.65553423 | AU129: 84.44521737
B130: 111 | C130: 85.21290116 | D130: 0.02378885705 | E130: 85.2129056 | F130: 85.23701825 | G130: 0.02411265378 | I130: -0.811853356 | J130: -0.9885281708 | L130: -0.905435146 | M130: -0.905435146 | O130: 1.650793829e-09 | P130: 1.339444359e-09 | Q130: 1.630933065e-09 | S130: 4.380138301e-10 | T130: 1.740897113e-10 | V130: -57.82307163 | W130: -63.58512177 | X130: -67.59226895 | Z130: -63.58512177 | AD130: -110 | AE130: =IF('LOS Range'!$H$18>index+$H$25,'LOS Range'!$H$22,AD130+'LOS Range'!$H$26) -> -93.4 | AO130: 29.81487823 | AP130: 85.21290116 | AT130: 35.57692837 | AU130: 85.21290116
B131: 112 | C131: 85.98058496 | D131: 0.0235765356 | E131: 85.98058936 | F131: 86.00448678 | G131: 0.02389742234 | I131: -0.8133755831 | J131: -0.9886299553 | L131: -0.9070892717 | M131: -0.9070892717 | O131: 1.621446971e-09 | P131: 1.318112562e-09 | Q131: 1.602120337e-09 | S131: 4.258012071e-10 | T131: 1.681808014e-10 | V131: -57.9009725 | W131: -63.70793112 | X131: -67.74223582 | Z131: -63.70793112 | AD131: -110 | AE131: =IF('LOS Range'!$H$18>index+$H$25,'LOS Range'!$H$22,AD131+'LOS Range'!$H$26) -> -93.4 | AO131: 29.69206888 | AP131: 85.98058496 | AT131: 35.4990275 | AU131: 85.98058496
B132: 113 | C132: 86.74826875 | D132: 0.02336796998 | E132: 86.74827311 | F132: 86.77195911 | G132: 0.02368599873 | I132: -0.8148733841 | J132: -0.9887299501 | L132: -0.9087006096 | M132: -0.9087006096 | O132: 1.592875781e-09 | P132: 1.297283553e-09 | Q132: 1.5740643e-09 | S132: 4.140334251e-10 | T132: 1.62522592e-10 | V132: -57.97818091 | W132: -63.82964597 | X132: -67.8908626 | Z132: -63.82964597 | AD132: -110 | AE132: =IF('LOS Range'!$H$18>index+$H$25,'LOS Range'!$H$22,AD132+'LOS Range'!$H$26) -> -93.4 | AO132: 29.57035403 | AP132: 86.74826875 | AT132: 35.42181909 | AU132: 86.74826875
B133: 114 | C133: 87.51595255 | D133: 0.02316306142 | E133: 87.51595687 | F133: 87.53943515 | G133: 0.0234782828 | I133: -0.8163473421 | J133: -0.9888282019 | L133: -0.9102706147 | M133: -0.9102706147 | O133: 1.565053161e-09 | P133: 1.276941755e-09 | Q133: 1.546738691e-09 | S133: 4.026906048e-10 | T133: 1.571023818e-10 | V133: -58.05470906 | W133: -63.95028503 | X133: -68.03817231 | Z133: -63.95028503 | AD133: -110 | AE133: =IF('LOS Range'!$H$18>index+$H$25,'LOS Range'!$H$22,AD133+'LOS Range'!$H$26) -> -93.4 | AO133: 29.44971497 | AP133: 87.51595255 | AT133: 35.34529094 | AU133: 87.51595255
B134: 115 | C134: 88.28363634 | D134: 0.02296171459 | E134: 88.28364062 | F134: 88.3069148 | G134: 0.02327417789 | I134: -0.8177980216 | J134: -0.9889247558 | L134: -0.9118006808 | M134: -0.9118006808 | O134: 1.537953188e-09 | P134: 1.257072184e-09 | Q134: 1.520118379e-09 | S134: 3.917539146e-10 | T134: 1.519082153e-10 | V134: -58.13056883 | W134: -64.06986655 | X134: -68.18418739 | Z134: -64.06986655 | AD134: -110 | AE134: =IF('LOS Range'!$H$18>index+$H$25,'LOS Range'!$H$22,AD134+'LOS Range'!$H$26) -> -93.4 | AO134: 29.33013345 | AP134: 88.28363634 | AT134: 35.26943117 | AU134: 88.28363634
B135: 116 | C135: 89.05132013 | D135: 0.02276383745 | E135: 89.05132438 | F135: 89.07439797 | G135: 0.02307359064 | I135: -0.8192259696 | J135: -0.9890196556 | L135: -0.9132921438 | M135: -0.9132921438 | O135: 1.511551051e-09 | P135: 1.237660426e-09 | Q135: 1.494179303e-09 | S135: 3.812055075e-10 | T135: 1.469288325e-10 | V135: -58.2057718 | W135: -64.18840833 | X135: -68.32892972 | Z135: -64.18840833 | AD135: -110 | AE135: =IF('LOS Range'!$H$18>index+$H$25,'LOS Range'!$H$22,AD135+'LOS Range'!$H$26) -> -93.4 | AO135: 29.21159167 | AP135: 89.05132013 | AT135: 35.1942282 | AU135: 89.05132013
B136: 117 | C136: 89.81900393 | D136: 0.02256934109 | E136: 89.81900814 | F136: 89.84188457 | G136: 0.02287643091 | I136: -0.8206317162 | J136: -0.9891129432 | L136: -0.9147462847 | M136: -0.9147462847 | O136: 1.485822995e-09 | P136: 1.218692606e-09 | Q136: 1.468898419e-09 | S136: 3.710284614e-10 | T136: 1.421536236e-10 | V136: -58.28032925 | W136: -64.30592775 | X136: -68.47242065 | Z136: -64.30592775 | AD136: -110 | AE136: =IF('LOS Range'!$H$18>index+$H$25,'LOS Range'!$H$22,AD136+'LOS Range'!$H$26) -> -93.4 | AO136: 29.09407225 | AP136: 89.81900393 | AT136: 35.11967075 | AU136: 89.81900393
B137: 118 | C137: 90.58668772 | D137: 0.0223781396 | E137: 90.5866919 | F137: 90.60937451 | G137: 0.02268261161 | I137: -0.8220157749 | J137: -0.9892046596 | L137: -0.916164332 | M137: -0.916164332 | O137: 1.460746266e-09 | P137: 1.200155369e-09 | Q137: 1.44425365e-09 | S137: 3.612067246e-10 | T137: 1.375725861e-10 | V137: -58.35425215 | W137: -64.42244173 | X137: -68.61468099 | Z137: -64.42244173 | AD137: -110 | AE137: =IF('LOS Range'!$H$18>index+$H$25,'LOS Range'!$H$22,AD137+'LOS Range'!$H$26) -> -93.4 | AO137: 28.97755827 | AP137: 90.58668772 | AT137: 35.04574785 | AU137: 90.58668772
B138: 119 | C138: 91.35437152 | D138: 0.02219015 | E138: 91.35437566 | F138: 91.3768677 | G138: 0.02249204856 | I138: -0.8233786436 | J138: -0.9892948439 | L138: -0.9175474642 | M138: -0.9175474642 | O138: 1.436299064e-09 | P138: 1.182035853e-09 | Q138: 1.420223835e-09 | S138: 3.51725064e-10 | T138: 1.331762852e-10 | V138: -58.42755123 | W138: -64.53796683 | X138: -68.75573103 | Z138: -64.53796683 | AD138: -110 | AE138: =IF('LOS Range'!$H$18>index+$H$25,'LOS Range'!$H$22,AD138+'LOS Range'!$H$26) -> -93.4 | AO138: 28.86203317 | AP138: 91.35437152 | AT138: 34.97244877 | AU138: 91.35437152
B139: 120 | C139: 92.12205531 | D139: 0.02200529202 | E139: 92.12205942 | F139: 92.14436408 | G139: 0.0223046604 | I139: -0.8247208051 | J139: -0.9893835343 | L139: -0.9188968126 | M139: -0.9188968126 | O139: 1.412460491e-09 | P139: 1.164321672e-09 | Q139: 1.396788688e-09 | S139: 3.425690176e-10 | T139: 1.289558179e-10 | V139: -58.50023691 | W139: -64.65251918 | X139: -68.8955906 | Z139: -64.65251918 | AD139: -110 | AE139: =IF('LOS Range'!$H$18>index+$H$25,'LOS Range'!$H$22,AD139+'LOS Range'!$H$26) -> -93.4 | AO139: 28.74748082 | AP139: 92.12205531 | AT139: 34.89976309 | AU139: 92.12205531
B140: 121 | C140: 92.88973911 | D140: 0.02182348808 | E140: 92.88974318 | F140: 92.91186354 | G140: 0.02212036845 | I140: -0.8260427276 | J140: -0.9894707676 | L140: -0.920213463 | M140: -0.920213463 | O140: 1.389210512e-09 | P140: 1.147000892e-09 | Q140: 1.373928751e-09 | S140: 3.337248493e-10 | T140: 1.249027784e-10 | V140: -58.57231939 | W140: -64.76611454 | X140: -69.03427901 | Z140: -64.76611454 | AD140: -110 | AE140: =IF('LOS Range'!$H$18>index+$H$25,'LOS Range'!$H$22,AD140+'LOS Range'!$H$26) -> -93.4 | AO140: 28.63388546 | AP140: 92.88973911 | AT140: 34.82768061 | AU140: 92.88973911
B141: 122 | C141: 93.6574229 | D141: 0.02164466313 | E141: 93.65742694 | F141: 93.67936603 | G141: 0.02193909661 | I141: -0.8273448654 | J141: -0.9895565794 | L141: -0.9214984585 | M141: -0.9214984585 | O141: 1.366529907e-09 | P141: 1.13006201e-09 | Q141: 1.351625354e-09 | S141: 3.251795071e-10 | T141: 1.210092266e-10 | V141: -58.64380859 | W141: -64.87876832 | X141: -69.17181515 | Z141: -64.87876832 | AD141: -110 | AE141: =IF('LOS Range'!$H$18>index+$H$25,'LOS Range'!$H$22,AD141+'LOS Range'!$H$26) -> -93.4 | AO141: 28.52123168 | AP141: 93.6574229 | AT141: 34.75619141 | AU141: 93.6574229
B142: 123 | C142: 94.42510669 | D142: 0.02146874454 | E142: 94.4251107 | F142: 94.44687147 | G142: 0.02176077125 | I142: -0.8286276592 | J142: -0.9896410041 | L142: -0.9227528007 | M142: -0.9227528007 | O142: 1.344400235e-09 | P142: 1.11349394e-09 | Q142: 1.329860581e-09 | S142: 3.16920584e-10 | T142: 1.172676595e-10 | V142: -58.7147142 | W142: -64.99049553 | X142: -69.30821743 | Z142: -64.99049553 | AD142: -110 | AE142: =IF('LOS Range'!$H$18>index+$H$25,'LOS Range'!$H$22,AD142+'LOS Range'!$H$26) -> -93.4 | AO142: 28.40950447 | AP142: 94.42510669 | AT142: 34.6852858 | AU142: 94.42510669
B143: 124 | C143: 95.19279049 | D143: 0.02129566206 | E143: 95.19279446 | F143: 95.21437978 | G143: 0.02158532112 | I143: -0.8298915368 | J143: -0.9897240751 | L143: -0.9239774525 | M143: -0.9239774525 | O143: 1.322803797e-09 | P143: 1.097285992e-09 | Q143: 1.30861723e-09 | S143: 3.089362815e-10 | T143: 1.13670983e-10 | V143: -58.78504567 | W143: -65.10131085 | X143: -69.44350384 | Z143: -65.10131085 | AD143: -110 | AE143: =IF('LOS Range'!$H$18>index+$H$25,'LOS Range'!$H$22,AD143+'LOS Range'!$H$26) -> -93.4 | AO143: 28.29868915 | AP143: 95.19279049 | AT143: 34.61495433 | AU143: 95.19279049
B144: 125 | C144: 95.96047428 | D144: 0.02112534765 | E144: 95.96047822 | F144: 95.9818909 | G144: 0.02141267725 | I144: -0.8311369133 | J144: -0.9898058247 | L144: -0.9251733392 | M144: -0.9251733392 | O144: 1.301723598e-09 | P144: 1.081427858e-09 | Q144: 1.287878779e-09 | S144: 3.012153751e-10 | T144: 1.102124873e-10 | V144: -58.85481222 | W144: -65.21122864 | X144: -69.57769196 | Z144: -65.21122864 | AD144: -110 | AE144: =IF('LOS Range'!$H$18>index+$H$25,'LOS Range'!$H$22,AD144+'LOS Range'!$H$26) -> -93.4 | AO144: 28.18877136 | AP144: 95.96047428 | AT144: 34.54518778 | AU144: 95.96047428
B145: 126 | C145: 96.72815808 | D145: 0.02095773545 | E145: 96.72816199 | F145: 96.74940476 | G145: 0.02124277284 | I145: -0.8323641919 | J145: -0.9898862841 | L145: -0.9263413507 | M145: -0.9263413507 | O145: 1.281143313e-09 | P145: 1.065909592e-09 | Q145: 1.267629357e-09 | S145: 2.937471823e-10 | T145: 1.068858229e-10 | V145: -58.92402286 | W145: -65.32026291 | X145: -69.71079895 | Z145: -65.32026291 | AD145: -110 | AE145: =IF('LOS Range'!$H$18>index+$H$25,'LOS Range'!$H$22,AD145+'LOS Range'!$H$26) -> -93.4 | AO145: 28.07973709 | AP145: 96.72815808 | AT145: 34.47597714 | AU145: 96.72815808
B146: 127 | C146: 97.49584187 | D146: 0.02079276166 | E146: 97.49584575 | F146: 97.51692129 | G146: 0.02107554322 | I146: -0.8335737643 | J146: -0.9899654837 | L146: -0.9274823427 | M146: -0.9274823427 | O146: 1.261047261e-09 | P146: 1.050721597e-09 | Q146: 1.247853709e-09 | S146: 2.865215325e-10 | T146: 1.036849789e-10 | V146: -58.99268637 | W146: -65.42842735 | X146: -69.84284156 | Z146: -65.42842735 | AD146: -110 | AE146: =IF('LOS Range'!$H$18>index+$H$25,'LOS Range'!$H$22,AD146+'LOS Range'!$H$26) -> -93.4 | AO146: 27.97157265 | AP146: 97.49584187 | AT146: 34.40731363 | AU146: 97.49584187
B147: 128 | C147: 98.26352567 | D147: 0.02063036448 | E147: 98.26352951 | F147: 98.28444044 | G147: 0.02091092572 | I147: -0.8347660107 | J147: -0.9900434528 | L147: -0.9285971386 | M147: -0.9285971386 | O147: 1.241420367e-09 | P147: 1.035854611e-09 | Q147: 1.228537174e-09 | S147: 2.795287389e-10 | T147: 1.006042622e-10 | V147: -59.06081134 | W147: -65.53573535 | X147: -69.97383619 | Z147: =IF(pol="Horizontal",X147,W147) -> -65.53573535 | AD147: -110 | AE147: =IF('LOS Range'!$H$18>index+$H$25,'LOS Range'!$H$22,AD147+'LOS Range'!$H$26) -> -93.4 | AO147: =ABS(AE147-Z147) -> 27.86426465 | AP147: 98.26352567 | AT147: 34.33918866 | AU147: 98.26352567
B148: 129 | C148: =D/10000*B148 -> 99.03120946 | D148: 0.02047048402 | E148: 99.03121328 | F148: 99.05196214 | G148: 0.02074885962 | I148: -0.8359413006 | J148: -0.9901202199 | L148: -0.9296865309 | M148: -0.9296865309 | O148: 1.222248141e-09 | P148: 1.021299694e-09 | Q148: 1.209665651e-09 | S148: 2.727595718e-10 | T148: 9.763827874e-11 | V148: -59.12840615 | W148: -65.6422 | X148: -70.10379885 | Z148: -65.6422 | AD148: =$AD$19 -> -110 | AE148: =IF('LOS Range'!$H$18>index+$H$25,'LOS Range'!$H$22,AD148+'LOS Range'!$H$26) -> -93.4 | AO148: 27.7578 | AP148: =D/10000*B148 -> 99.03120946 | AT148: =ABS(AE148-V148) -> 34.27159385 | AU148: =D/10000*B148 -> 99.03120946
B149: 130 | C149: 99.79889325 | D149: 0.02031306223 | E149: 99.79889704 | F149: 99.81948633 | G149: 0.02058928607 | I149: -0.8370999932 | J149: -0.9901958125 | L149: -0.9307512823 | M149: -0.9307512823 | O149: 1.203516647e-09 | P149: 1.007048211e-09 | Q149: 1.191225576e-09 | S149: 2.662052339e-10 | T149: 9.478191542e-11 | V149: -59.19547898 | W149: -65.7478341 | X149: -70.23274519 | Z149: -65.7478341 | AD149: -110 | AE149: =IF('LOS Range'!$H$18>index+$H$25,'LOS Range'!$H$22,AD149+'LOS Range'!$H$26) -> -93.4 | AO149: 27.6521659 | AP149: 99.79889325 | AT149: 34.20452102 | AU149: 99.79889325
B150: =B149+1 -> 131 | C150: 100.566577 | D150: =ATAN((H_1+H_3)/C150) -> 0.02015804285 | E150: =SQRT(ABS(H_1-H_3)^2+C150^2) -> 100.5665808 | F150: =SQRT(C150^2+(H_1+H_3)^2) -> 100.587013 | G150: =F150-E150 -> 0.02043214801 | I150: =(er*SIN(D150)-SQRT(er-COS(D150)^2))/(er*SIN(D150)+SQRT(er-COS(D150)^2)) -> -0.8382424374 | J150: =(SIN(D150)-SQRT(er-COS(D150)^2))/(SIN(D150)+SQRT(er-COS(D150)^2)) -> -0.9902702573 | L150: =COS(G150*2*PI()/lambda)*SIGN(I150) -> -0.9317921272 | M150: =COS(G150*2*PI()/lambda)*SIGN(J150) -> -0.9317921272 | O150: =Pt_w*Gt_m*Gr_m*lambda^2/((4*PI()*E150)^2) -> 1.18521248e-09 | P150: =Pt_w*Gt_m*Gr_m*lambda^2/((4*PI()*F150)^2)*ABS(I150) -> 9.930918233e-10 | Q150: =Pt_w*Gt_m*Gr_m*lambda^2/((4*PI()*F150)^2)*ABS(J150) -> 1.173203898e-09 | S150: =O150+L150*P150 -> 2.598573372e-10 | T150: =O150+M150*Q150 -> 9.203032363e-11 | V150: =10*LOG10(O150*1000) -> -59.26203784 | W150: =10*LOG10(S150*1000) -> -65.85265016 | X150: =10*LOG10(T150*1000) -> -70.36069051 | Z150: -65.85265016 | AD150: -110 | AE150: =IF('LOS Range'!$H$18>index+$H$25,'LOS Range'!$H$22,AD150+'LOS Range'!$H$26) -> -93.4 | AO150: 27.54734984 | AP150: 100.566577 | AT150: 34.13796216 | AU150: 100.566577
B151: 132 | C151: 101.3342608 | D151: 0.02000537131 | E151: 101.3342646 | F151: 101.354542 | G151: 0.0202773901 | I151: -0.8393689727 | J151: -0.9903435804 | L151: -0.9328097732 | M151: -0.9328097732 | O151: 1.167322738e-09 | P151: 9.794224756e-10 | Q151: 1.155588058e-09 | S151: 2.537078808e-10 | T151: 8.93789037e-11 | V151: -59.32809055 | W151: -65.95666042 | X151: -70.48764977 | Z151: -65.95666042 | AD151: -110 | AE151: =IF('LOS Range'!$H$18>index+$H$25,'LOS Range'!$H$22,AD151+'LOS Range'!$H$26) -> -93.4 | AO151: 27.44333958 | AP151: 101.3342608 | AT151: 34.07190945 | AU151: 101.3342608
B152: 133 | C152: 102.1019446 | D152: 0.01985499466 | E152: 102.1019483 | F152: 102.1220733 | G152: 0.02012495869 | I152: -0.8404799288 | J152: -0.9904158069 | L152: -0.9338049018 | M152: -0.9338049018 | O152: 1.149835005e-09 | P152: 9.660323834e-10 | Q152: 1.138365962e-09 | S152: 2.477492305e-10 | T152: 8.682329033e-11 | V152: -59.39364474 | W152: -66.05987686 | X152: -70.6136376 | Z152: -66.05987686 | AD152: -110 | AE152: =IF('LOS Range'!$H$18>index+$H$25,'LOS Range'!$H$22,AD152+'LOS Range'!$H$26) -> -93.4 | AO152: 27.34012314 | AP152: 102.1019446 | AT152: 34.00635526 | AU152: 102.1019446
B153: 134 | C153: 102.8696284 | D153: 0.01970686156 | E153: 102.8696321 | F153: 102.8896069 | G153: 0.01997480171 | I153: -0.8415756267 | J153: -0.9904869611 | L153: -0.9347781698 | M153: -0.9347781698 | O153: 1.132737326e-09 | P153: 9.529140236e-10 | Q153: 1.121525963e-09 | S153: 2.419740995e-10 | T153: 8.435933907e-11 | V153: -59.45870788 | W153: -66.16231118 | X153: -70.73866832 | Z153: -66.16231118 | AD153: -110 | AE153: =IF('LOS Range'!$H$18>index+$H$25,'LOS Range'!$H$22,AD153+'LOS Range'!$H$26) -> -93.4 | AO153: 27.23768882 | AP153: 102.8696284 | AT153: 33.94129212 | AU153: 102.8696284
B154: 135 | C154: 103.6373122 | D154: 0.01956092218 | E154: 103.6373159 | F154: 103.6571427 | G154: 0.01982686864 | I154: -0.8426563785 | J154: -0.9905570669 | L154: -0.9357302104 | M154: -0.9357302104 | O154: 1.116018187e-09 | P154: 9.400601232e-10 | Q154: 1.105056844e-09 | S154: 2.363755299e-10 | T154: 8.198311359e-11 | V154: -59.52328728 | W154: -66.26397484 | X154: -70.86275592 | Z154: -66.26397484 | AD154: -110 | AE154: =IF('LOS Range'!$H$18>index+$H$25,'LOS Range'!$H$22,AD154+'LOS Range'!$H$26) -> -93.4 | AO154: 27.13602516 | AP154: 103.6373122 | AT154: 33.87671272 | AU154: 103.6373122
B155: 136 | C155: 104.404996 | D155: 0.01941712815 | E155: 104.4049996 | F155: 104.4246808 | G155: 0.01968111043 | I155: -0.8437224879 | J155: -0.9906261471 | L155: -0.9366616341 | M155: -0.9366616341 | O155: 1.099666494e-09 | P155: 9.274636499e-10 | Q155: 1.088947794e-09 | S155: 2.309468763e-10 | T155: 7.969087388e-11 | V155: -59.58739007 | W155: -66.36487908 | X155: -70.98591411 | Z155: -66.36487908 | AD155: -110 | AE155: =IF('LOS Range'!$H$18>index+$H$25,'LOS Range'!$H$22,AD155+'LOS Range'!$H$26) -> -93.4 | AO155: 27.03512092 | AP155: 104.404996 | AT155: 33.81260993 | AU155: 104.404996
B156: 137 | C156: 105.1726798 | D156: 0.01927543252 | E156: 105.1726834 | F156: 105.1922209 | G156: 0.01953747948 | I156: -0.8447742504 | J156: -0.9906942241 | L156: -0.9375730296 | M156: -0.9375730296 | O156: 1.083671559e-09 | P156: 9.151178025e-10 | Q156: 1.073188394e-09 | S156: 2.256817887e-10 | T156: 7.747906506e-11 | V156: -59.65102324 | W156: -66.46503485 | X156: -71.10815629 | Z156: -66.46503485 | AD156: -110 | AE156: =IF('LOS Range'!$H$18>index+$H$25,'LOS Range'!$H$22,AD156+'LOS Range'!$H$26) -> -93.4 | AO156: 26.93496515 | AP156: 105.1726798 | AT156: 33.74897676 | AU156: 105.1726798
B157: 138 | C157: 105.9403636 | D157: 0.0191357897 | E157: 105.9403672 | F157: 105.9597631 | G157: 0.01939592956 | I157: -0.8458119535 | J157: -0.9907613197 | L157: -0.938464965 | M157: -0.938464965 | O157: 1.068023079e-09 | P157: 9.03016002e-10 | Q157: 1.0577686e-09 | S157: 2.205741983e-10 | T157: 7.534430698e-11 | V157: -59.71419363 | W157: -66.56445291 | X157: -71.22949557 | Z157: -66.56445291 | AD157: -110 | AE157: =IF('LOS Range'!$H$18>index+$H$25,'LOS Range'!$H$22,AD157+'LOS Range'!$H$26) -> -93.4 | AO157: 26.83554709 | AP157: 105.9403636 | AT157: 33.68580637 | AU157: 105.9403636
B158: 139 | C158: 106.7080474 | D158: 0.01899815539 | E158: 106.7080509 | F158: 106.7273074 | G158: 0.01925641577 | I158: -0.8468358773 | J158: -0.9908274548 | L158: -0.9393379883 | M158: -0.9393379883 | O158: 1.052711119e-09 | P158: 8.911518827e-10 | Q158: 1.042678724e-09 | S158: 2.156183025e-10 | T158: 7.32833845e-11 | V158: -59.7769079 | W158: -66.66314377 | X158: -71.34994482 | Z158: -66.66314377 | AD158: -110 | AE158: =IF('LOS Range'!$H$18>index+$H$25,'LOS Range'!$H$22,AD158+'LOS Range'!$H$26) -> -93.4 | AO158: 26.73685623 | AP158: 106.7080474 | AT158: 33.6230921 | AU158: 106.7080474
B159: 140 | C159: 107.4757312 | D159: 0.01886248658 | E159: 107.4757347 | F159: 107.4948536 | G159: 0.01911889451 | I159: -0.8478462943 | J159: -0.99089265 | L159: -0.9401926285 | M159: -0.9401926285 | O159: 1.0377261e-09 | P159: 8.795192844e-10 | Q159: 1.027909422e-09 | S159: 2.108085519e-10 | T159: 7.129323829e-11 | V159: -59.8391726 | W159: -66.76111775 | X159: -71.46951658 | Z159: -66.76111775 | AD159: -110 | AE159: =IF('LOS Range'!$H$18>index+$H$25,'LOS Range'!$H$22,AD159+'LOS Range'!$H$26) -> -93.4 | AO159: 26.63888225 | AP159: 107.4757312 | AT159: 33.5608274 | AU159: 107.4757312
B160: 141 | C160: 108.243415 | D160: 0.01872874147 | E160: 108.2434185 | F160: 108.2624018 | G160: 0.01898332338 | I160: -0.84884347 | J160: -0.9909569251 | L160: -0.9410293964 | M160: -0.9410293964 | O160: 1.023058778e-09 | P160: 8.681122443e-10 | Q160: 1.013451679e-09 | S160: 2.061396372e-10 | T160: 6.937095629e-11 | V160: -59.90099414 | W160: -66.85838493 | X160: -71.58822319 | Z160: -66.85838493 | AD160: -110 | AE160: =IF('LOS Range'!$H$18>index+$H$25,'LOS Range'!$H$22,AD160+'LOS Range'!$H$26) -> -93.4 | AO160: 26.54161507 | AP160: 108.243415 | AT160: 33.49900586 | AU160: 108.243415
B161: 142 | C161: 109.0110988 | D161: 0.01859687944 | E161: 109.0111023 | F161: 109.0299519 | G161: 0.01884966121 | I161: -0.849827663 | J161: -0.9910202995 | L161: -0.941848785 | M161: -0.941848785 | O161: 1.008700238e-09 | P161: 8.569249895e-10 | Q161: 9.992967948e-10 | S161: 2.016064775e-10 | T161: 6.751376563e-11 | V161: -59.96237877 | W161: -66.95495518 | X161: -71.70607668 | Z161: -66.95495518 | AD161: -110 | AE161: =IF('LOS Range'!$H$18>index+$H$25,'LOS Range'!$H$22,AD161+'LOS Range'!$H$26) -> -93.4 | AO161: 26.44504482 | AP161: 109.0110988 | AT161: 33.43762123 | AU161: 109.0110988
B162: 143 | C162: 109.7787826 | D162: 0.018466861 | E162: 109.778786 | F162: 109.7975039 | G162: 0.01871786795 | I162: -0.850799125 | J162: -0.991082792 | L162: -0.9426512706 | M162: -0.9426512706 | O162: 9.946418705e-10 | P162: 8.459519299e-10 | Q162: 9.854363691e-10 | S162: 1.972042089e-10 | T162: 6.571902506e-11 | V162: -60.02333263 | W162: -67.0508382 | X162: -71.82308888 | Z162: -67.0508382 | AD162: -110 | AE162: =IF('LOS Range'!$H$18>index+$H$25,'LOS Range'!$H$22,AD162+'LOS Range'!$H$26) -> -93.4 | AO162: 26.3491618 | AP162: 109.7787826 | AT162: 33.37666737 | AU162: 109.7787826
B163: 144 | C163: 110.5464664 | D163: 0.01833864776 | E163: 110.5464698 | F163: 110.5650577 | G163: 0.01858790469 | I163: -0.8517581014 | J163: -0.9911444208 | L163: -0.9434373135 | M163: -0.9434373135 | O163: 9.808753679e-10 | P163: 8.351876511e-10 | Q163: 9.718622921e-10 | S163: 1.92928174e-10 | T163: 6.398421788e-11 | V163: -60.08386172 | W163: -67.14604346 | X163: -71.93927134 | Z163: -67.14604346 | AD163: -110 | AE163: =IF('LOS Range'!$H$18>index+$H$25,'LOS Range'!$H$22,AD163+'LOS Range'!$H$26) -> -93.4 | AO163: 26.25395654 | AP163: 110.5464664 | AT163: 33.31613828 | AU163: 110.5464664
B164: 145 | C164: 111.3141502 | D164: 0.01821220239 | E164: 111.3141536 | F164: 111.3326133 | G164: 0.01845973359 | I164: -0.8527048314 | J164: -0.9912052038 | L164: -0.9442073583 | M164: -0.9442073583 | O164: 9.673927061e-10 | P164: 8.246269084e-10 | Q164: 9.58566731e-10 | S164: 1.887739113e-10 | T164: 6.230694524e-11 | V164: -60.14397191 | W164: -67.24058026 | X164: -72.05463541 | Z164: -67.24058026 | AD164: -110 | AE164: =IF('LOS Range'!$H$18>index+$H$25,'LOS Range'!$H$22,AD164+'LOS Range'!$H$26) -> -93.4 | AO164: 26.15941974 | AP164: 111.3141502 | AT164: 33.25602809 | AU164: 111.3141502
B165: 146 | C165: 112.081834 | D165: 0.01808748858 | E165: 112.0818373 | F165: 112.1001707 | G165: 0.01833331781 | I165: -0.8536395481 | J165: -0.9912651582 | L165: -0.9449618347 | M165: -0.9449618347 | O165: 9.541861354e-10 | P165: 8.142646197e-10 | Q165: 9.455421189e-10 | S165: 1.847371464e-10 | T165: 6.068491987e-11 | V165: -60.20366898 | W165: -67.33445769 | X165: -72.16919217 | Z165: -67.33445769 | AD165: -110 | AE165: =IF('LOS Range'!$H$18>index+$H$25,'LOS Range'!$H$22,AD165+'LOS Range'!$H$26) -> -93.4 | AO165: 26.06554231 | AP165: 112.081834 | AT165: 33.19633102 | AU165: 112.081834
B166: 147 | C166: 112.8495178 | D166: 0.017964471 | E166: 112.8495211 | F166: 112.8677297 | G166: 0.01820862156 | I166: -0.8545624785 | J166: -0.9913243008 | L166: -0.9457011583 | M166: -0.9457011583 | O166: 9.412481688e-10 | P166: 8.040958603e-10 | Q166: 9.327811442e-10 | S166: 1.808137823e-10 | T166: 5.911596018e-11 | V166: -60.26295856 | W166: -67.42768469 | X166: -72.28295252 | Z166: -67.42768469 | AD166: -110 | AE166: =IF('LOS Range'!$H$18>index+$H$25,'LOS Range'!$H$22,AD166+'LOS Range'!$H$26) -> -93.4 | AO166: 25.97231531 | AP166: 112.8495178 | AT166: 33.13704144 | AU166: 112.8495178
B167: 148 | C167: 113.6172016 | D167: 0.01784311529 | E167: 113.6172049 | F167: 113.6352905 | G167: 0.01808560999 | I167: -0.8554738442 | J167: -0.9913826481 | L167: -0.9464257309 | M167: -0.9464257309 | O167: 9.285715712e-10 | P167: 7.941158564e-10 | Q167: 9.202767402e-10 | S167: 1.769998913e-10 | T167: 5.759798473e-11 | V167: -60.32184617 | W167: -67.52027 | X167: -72.39592712 | Z167: -67.52027 | AD167: -110 | AE167: =IF('LOS Range'!$H$18>index+$H$25,'LOS Range'!$H$22,AD167+'LOS Range'!$H$26) -> -93.4 | AO167: 25.87973 | AP167: 113.6172016 | AT167: 33.07815383 | AU167: 113.6172016
B168: 149 | C168: 114.3848853 | D168: 0.017723388 | E168: 114.3848887 | F168: 114.4028529 | G168: 0.01796424919 | I168: -0.8563738612 | J168: -0.9914402159 | L168: -0.947135941 | M168: -0.947135941 | O168: 9.161493496e-10 | P168: 7.843199803e-10 | Q168: 9.080220753e-10 | S168: 1.732917071e-10 | T168: 5.612900695e-11 | V168: -60.38033722 | W168: -67.6122222 | X168: -72.50812641 | Z168: -67.6122222 | AD168: -110 | AE168: =IF('LOS Range'!$H$18>index+$H$25,'LOS Range'!$H$22,AD168+'LOS Range'!$H$26) -> -93.4 | AO168: 25.7877778 | AP168: 114.3848853 | AT168: 33.01966278 | AU168: 114.3848853
B169: 150 | C169: 115.1525691 | D169: 0.01760525657 | E169: 115.1525724 | F169: 115.1704169 | G169: 0.01784450615 | I169: -0.85726274 | J169: -0.9914970198 | L169: -0.9478321645 | M169: -0.9478321645 | O169: 9.039747434e-10 | P169: 7.747037444e-10 | Q169: 8.960105438e-10 | S169: 1.696856165e-10 | T169: 5.470713029e-11 | V169: -60.43843703 | W169: -67.70354969 | X169: -72.61956066 | Z169: -67.70354969 | AD169: -110 | AE169: =IF('LOS Range'!$H$18>index+$H$25,'LOS Range'!$H$22,AD169+'LOS Range'!$H$26) -> -93.4 | AO169: 25.69645031 | AP169: 115.1525691 | AT169: 32.96156297 | AU169: 115.1525691
B170: 151 | C170: 115.9202529 | D170: 0.01748868932 | E170: 115.9202562 | F170: 115.9379825 | G170: 0.01772634875 | I170: -0.8581406862 | J170: -0.9915530749 | L170: -0.9485147652 | M170: -0.9485147652 | O170: 8.920412149e-10 | P170: 7.652627967e-10 | Q170: 8.84235757e-10 | S170: 1.66178153e-10 | T170: 5.333054353e-11 | V170: -60.49615079 | W170: -67.79426072 | X170: -72.7302399 | Z170: -67.79426072 | AD170: -110 | AE170: =IF('LOS Range'!$H$18>index+$H$25,'LOS Range'!$H$22,AD170+'LOS Range'!$H$26) -> -93.4 | AO170: 25.60573928 | AP170: 115.9202529 | AT170: 32.90384921 | AU170: 115.9202529
B171: 152 | C171: 116.6879367 | D171: 0.01737365538 | E171: 116.68794 | F171: 116.7055497 | G171: 0.01760974569 | I171: -0.8590079001 | J171: -0.9916083959 | L171: -0.9491840951 | M171: -0.9491840951 | O171: 8.80342441e-10 | P171: 7.559929158e-10 | Q171: 8.726915346e-10 | S171: 1.627659893e-10 | T171: 5.199751643e-11 | V171: -60.5534836 | W171: -67.88436338 | X171: -72.84017399 | Z171: -67.88436338 | AD171: -110 | AE171: =IF('LOS Range'!$H$18>index+$H$25,'LOS Range'!$H$22,AD171+'LOS Range'!$H$26) -> -93.4 | AO171: 25.51563662 | AP171: 116.6879367 | AT171: 32.8465164 | AU171: 116.6879367
B172: 153 | C172: 117.4556205 | D172: 0.0172601247 | E172: 117.4556237 | F172: 117.4731184 | G172: 0.01749466652 | I172: -0.8598645773 | J172: -0.9916629971 | L172: -0.949840495 | M172: -0.949840495 | O172: 8.688723043e-10 | P172: 7.46890006e-10 | Q172: 8.613718967e-10 | S172: 1.594459313e-10 | T172: 5.070639562e-11 | V172: -60.61044046 | W172: -67.97386558 | X172: -72.94937259 | Z172: -67.97386558 | AD172: -110 | AE172: =IF('LOS Range'!$H$18>index+$H$25,'LOS Range'!$H$22,AD172+'LOS Range'!$H$26) -> -93.4 | AO172: 25.42613442 | AP172: 117.4556205 | AT172: 32.78955954 | AU172: 117.4556205
B173: 154 | C173: 118.2233043 | D173: 0.01714806801 | E173: 118.2233075 | F173: 118.2406886 | G173: 0.01738108155 | I173: -0.8607109087 | J173: -0.9917168924 | L173: -0.9504842948 | M173: -0.9504842948 | O173: 8.576248856e-10 | P173: 7.379500931e-10 | Q173: 8.502710558e-10 | S173: 1.562149117e-10 | T173: 4.94556007e-11 | V173: -60.66702626 | W173: -68.06277512 | X173: -73.05784519 | Z173: -68.06277512 | AD173: -110 | AE173: =IF('LOS Range'!$H$18>index+$H$25,'LOS Range'!$H$22,AD173+'LOS Range'!$H$26) -> -93.4 | AO173: 25.33722488 | AP173: 118.2233043 | AT173: 32.73297374 | AU173: 118.2233043
B174: 155 | C174: 118.9909881 | D174: 0.01703745679 | E174: 118.9909913 | F174: 119.0082603 | G174: 0.01726896187 | I174: -0.8615470805 | J174: -0.9917700955 | L174: -0.9511158139 | M174: -0.9511158139 | O174: 8.465944558e-10 | P174: 7.291693202e-10 | Q174: 8.3938341e-10 | S174: 1.530699843e-10 | T174: 4.824362059e-11 | V174: -60.7232458 | W174: -68.15109962 | X174: -73.16560107 | Z174: -68.15109962 | AD174: -110 | AE174: =IF('LOS Range'!$H$18>index+$H$25,'LOS Range'!$H$22,AD174+'LOS Range'!$H$26) -> -93.4 | AO174: 25.24890038 | AP174: 118.9909881 | AT174: 32.6767542 | AU174: 118.9909881
B175: 156 | C175: 119.7586719 | D175: 0.01692826326 | E175: 119.7586751 | F175: 119.7758333 | G175: 0.01715827931 | I175: -0.8623732745 | J175: -0.9918226196 | L175: -0.951735362 | M175: -0.951735362 | O175: 8.35775469e-10 | P175: 7.205439431e-10 | Q175: 8.287035351e-10 | S175: 1.500083185e-10 | T175: 4.706901007e-11 | V175: -60.7791038 | W175: -68.23884657 | X175: -73.27264935 | Z175: -68.23884657 | AD175: -110 | AE175: =IF('LOS Range'!$H$18>index+$H$25,'LOS Range'!$H$22,AD175+'LOS Range'!$H$26) -> -93.4 | AO175: 25.16115343 | AP175: 119.7586719 | AT175: 32.6208962 | AU175: 119.7586719
B176: 157 | C176: 120.5263557 | D176: 0.01682046033 | E176: 120.5263588 | F176: 120.5434078 | G176: 0.01704900642 | I176: -0.8631896683 | J176: -0.9918744776 | L176: -0.9523432388 | M176: -0.9523432388 | O176: 8.251625554e-10 | P176: 7.12070327e-10 | Q176: 8.182261785e-10 | S176: 1.47027194e-10 | T176: 4.593038651e-11 | V176: -60.83460488 | W176: -68.32602331 | X176: -73.378999 | Z176: -68.32602331 | AD176: -110 | AE176: =IF('LOS Range'!$H$18>index+$H$25,'LOS Range'!$H$22,AD176+'LOS Range'!$H$26) -> -93.4 | AO176: 25.07397669 | AP176: 120.5263557 | AT176: 32.56539512 | AU176: 120.5263557
B177: 158 | C177: 121.2940395 | D177: 0.01671402161 | E177: 121.2940426 | F177: 121.3109837 | G177: 0.01694111644 | I177: -0.8639964351 | J177: -0.9919256822 | L177: -0.9529397347 | M177: -0.9529397347 | O177: 8.147505144e-10 | P177: 7.037449423e-10 | Q177: 8.079462526e-10 | S177: 1.441239957e-10 | T177: 4.482642677e-11 | V177: -60.88975357 | W177: -68.41263706 | X177: -73.48465878 | Z177: -68.41263706 | AD177: -110 | AE177: =IF('LOS Range'!$H$18>index+$H$25,'LOS Range'!$H$22,AD177+'LOS Range'!$H$26) -> -93.4 | AO177: 24.98736294 | AP177: 121.2940395 | AT177: 32.51024643 | AU177: 121.2940395
B178: 159 | C178: 122.0617233 | D178: 0.01660892136 | E178: 122.0617264 | F178: 122.078561 | G178: 0.01683458328 | I178: -0.8647937442 | J178: -0.9919762455 | L178: -0.9535251314 | M178: -0.9535251314 | O178: 8.045343085e-10 | P178: 6.955643612e-10 | Q178: 7.978588284e-10 | S178: 1.412962096e-10 | T178: 4.375586433e-11 | V178: -60.94455431 | W178: -68.49869488 | X178: -73.58963733 | Z178: -68.49869488 | AD178: -110 | AE178: =IF('LOS Range'!$H$18>index+$H$25,'LOS Range'!$H$22,AD178+'LOS Range'!$H$26) -> -93.4 | AO178: 24.90130512 | AP178: 122.0617233 | AT178: 32.45544569 | AU178: 122.0617233
B179: 160 | C179: 122.8294071 | D179: 0.01650513452 | E179: 122.8294102 | F179: 122.8461395 | G179: 0.01672938152 | I179: -0.8655817609 | J179: -0.9920261796 | L179: -0.9540997018 | M179: -0.9540997018 | O179: 7.945090573e-10 | P179: 6.87525254e-10 | Q179: 7.879591299e-10 | S179: 1.385414175e-10 | T179: 4.271748649e-11 | V179: -60.99901148 | W179: -68.58420373 | X179: -73.69394309 | Z179: -68.58420373 | AD179: -110 | AE179: =IF('LOS Range'!$H$18>index+$H$25,'LOS Range'!$H$22,AD179+'LOS Range'!$H$26) -> -93.4 | AO179: 24.81579627 | AP179: 122.8294071 | AT179: 32.40098852 | AU179: 122.8294071
B180: 161 | C180: 123.5970909 | D180: 0.0164026366 | E180: 123.5970939 | F180: 123.6137194 | G180: 0.01662548634 | I180: -0.8663606467 | J180: -0.9920754961 | L180: -0.9546637104 | M180: -0.9546637104 | O180: 7.846700312e-10 | P180: 6.79624386e-10 | Q180: 7.78242528e-10 | S180: 1.358572932e-10 | T180: 4.171013179e-11 | V180: -61.05312934 | W180: -68.66917042 | X180: -73.79758438 | Z180: -68.66917042 | AD180: -110 | AE180: =IF('LOS Range'!$H$18>index+$H$25,'LOS Range'!$H$22,AD180+'LOS Range'!$H$26) -> -93.4 | AO180: 24.73082958 | AP180: 123.5970909 | AT180: 32.34687066 | AU180: 123.5970909
B181: 162 | C181: 124.3647747 | D181: 0.01630140375 | E181: 124.3647777 | F181: 124.3813006 | G181: 0.01652287356 | I181: -0.8671305594 | J181: -0.9921242064 | L181: -0.955217414 | M181: -0.955217414 | O181: 7.750126464e-10 | P181: 6.718586139e-10 | Q181: 7.687045359e-10 | S181: 1.332415986e-10 | T181: 4.073268754e-11 | V181: -61.10691211 | W181: -68.75360165 | X181: -73.90056934 | Z181: -68.75360165 | AD181: -110 | AE181: =IF('LOS Range'!$H$18>index+$H$25,'LOS Range'!$H$22,AD181+'LOS Range'!$H$26) -> -93.4 | AO181: 24.64639835 | AP181: 124.3647747 | AT181: 32.29308789 | AU181: 124.3647747
B182: 163 | C182: 125.1324585 | D182: 0.01620141269 | E182: 125.1324615 | F182: 125.148883 | G182: 0.01642151958 | I182: -0.867891653 | J182: -0.9921723216 | L182: -0.9557610613 | M182: -0.9557610613 | O182: 7.65532459e-10 | P182: 6.642248833e-10 | Q182: 7.593408028e-10 | S182: 1.306921796e-10 | T182: 3.978408749e-11 | V182: -61.1603639 | W182: -68.83750399 | X182: -74.00290599 | Z182: -68.83750399 | AD182: -110 | AE182: =IF('LOS Range'!$H$18>index+$H$25,'LOS Range'!$H$22,AD182+'LOS Range'!$H$26) -> -93.4 | AO182: 24.56249601 | AP182: 125.1324585 | AT182: 32.2396361 | AU182: 125.1324585
B183: 164 | C183: 125.9001423 | D183: 0.01610264071 | E183: 125.9001453 | F183: 125.9164667 | G183: 0.01632140139 | I183: -0.8686440783 | J183: -0.9922198526 | L183: -0.9562948938 | M183: -0.9562948938 | O183: 7.562251605e-10 | P183: 6.567202251e-10 | Q183: 7.5014711e-10 | S183: 1.282069625e-10 | T183: 3.886330961e-11 | V183: -61.21348877 | W183: -68.92088389 | X183: -74.10460217 | Z183: -68.92088389 | AD183: -110 | AE183: =IF('LOS Range'!$H$18>index+$H$25,'LOS Range'!$H$22,AD183+'LOS Range'!$H$26) -> -93.4 | AO183: 24.47911611 | AP183: 125.9001423 | AT183: 32.18651123 | AU183: 125.9001423
B184: 165 | C184: 126.6678261 | D184: 0.01600506567 | E184: 126.667829 | F184: 126.6840515 | G184: 0.01622249652 | I184: -0.8693879825 | J184: -0.9922668099 | L184: -0.9568191457 | M184: -0.9568191457 | O184: 7.470865722e-10 | P184: 6.493417532e-10 | Q184: 7.411193655e-10 | S184: 1.257839506e-10 | T184: 3.796937404e-11 | V184: -61.26629069 | W184: -69.00374769 | X184: -74.20566562 | Z184: -69.00374769 | AD184: -110 | AE184: =IF('LOS Range'!$H$18>index+$H$25,'LOS Range'!$H$22,AD184+'LOS Range'!$H$26) -> -93.4 | AO184: 24.39625231 | AP184: 126.6678261 | AT184: 32.13370931 | AU184: 126.6678261
B185: 166 | C185: 127.4355098 | D185: 0.01590866593 | E185: 127.4355128 | F185: 127.4516376 | G185: 0.01612478304 | I185: -0.8701235095 | J185: -0.9923132039 | L185: -0.9573340443 | M185: -0.9573340443 | O185: 7.381126411e-10 | P185: 6.420866613e-10 | Q185: 7.322535997e-10 | S185: 1.234212209e-10 | T185: 3.710134108e-11 | V185: -61.31877357 | W185: -69.08610162 | X185: -74.30610392 | Z185: -69.08610162 | AD185: -110 | AE185: =IF('LOS Range'!$H$18>index+$H$25,'LOS Range'!$H$22,AD185+'LOS Range'!$H$26) -> -93.4 | AO185: 24.31389838 | AP185: 127.4355098 | AT185: 32.08122643 | AU185: 127.4355098
B186: 167 | C186: 128.2031936 | D186: 0.01581342038 | E186: 128.2031966 | F186: 128.2192248 | G186: 0.01602823956 | I186: -0.8708508 | J186: -0.9923590446 | L186: -0.9578398103 | M186: -0.9578398103 | O186: 7.292994353e-10 | P186: 6.349522205e-10 | Q186: 7.235459609e-10 | S186: 1.211169208e-10 | T186: 3.62583093e-11 | V186: -61.37094123 | W186: -69.16795179 | X186: -74.40592451 | Z186: -69.16795179 | AD186: -110 | AE186: =IF('LOS Range'!$H$18>index+$H$25,'LOS Range'!$H$22,AD186+'LOS Range'!$H$26) -> -93.4 | AO186: 24.23204821 | AP186: 128.2031936 | AT186: 32.02905877 | AU186: 128.2031936
B187: 168 | C187: 128.9708774 | D187: 0.01571930843 | E187: 128.9708804 | F187: 128.9868132 | G187: 0.0159328452 | I187: -0.8715699915 | J187: -0.9924043418 | L187: -0.9583366579 | M187: -0.9583366579 | O187: 7.206431392e-10 | P187: 6.279357769e-10 | Q187: 7.149927114e-10 | S187: 1.188692655e-10 | T187: 3.543941382e-11 | V187: -61.42279744 | W187: -69.24930421 | X187: -74.5051347 | Z187: -69.24930421 | AD187: -110 | AE187: =IF('LOS Range'!$H$18>index+$H$25,'LOS Range'!$H$22,AD187+'LOS Range'!$H$26) -> -93.4 | AO187: 24.15069579 | AP187: 128.9708774 | AT187: 31.97720256 | AU187: 128.9708774
B188: 169 | C188: 129.7385612 | D188: 0.01562630996 | E188: 129.7385641 | F188: 129.7544027 | G188: 0.01583857956 | I188: -0.8722812185 | J188: -0.9924491052 | L188: -0.9588247949 | M188: -0.9588247949 | O188: 7.121400502e-10 | P188: 6.210347487e-10 | Q188: 7.065902229e-10 | S188: 1.166765346e-10 | T188: 3.464382455e-11 | V188: -61.47434589 | W188: -69.33016478 | X188: -74.60374169 | Z188: -69.33016478 | AD188: -110 | AE188: =IF('LOS Range'!$H$18>index+$H$25,'LOS Range'!$H$22,AD188+'LOS Range'!$H$26) -> -93.4 | AO188: 24.06983522 | AP188: 129.7385612 | AT188: 31.92565411 | AU188: 129.7385612
B189: 170 | C189: 130.506245 | D189: 0.01553440532 | E189: 130.5062479 | F189: 130.5219933 | G189: 0.01574542272 | I189: -0.8729846127 | J189: -0.9924933442 | L189: -0.9593044234 | M189: -0.9593044234 | O189: 7.037865738e-10 | P189: 6.142466244e-10 | Q189: 6.983349735e-10 | S189: 1.1453707e-10 | T189: 3.387074469e-11 | V189: -61.52559022 | W189: -69.41053931 | X189: -74.70175255 | Z189: -69.41053931 | AD189: -110 | AE189: =IF('LOS Range'!$H$18>index+$H$25,'LOS Range'!$H$22,AD189+'LOS Range'!$H$26) -> -93.4 | AO189: 23.98946069 | AP189: 130.506245 | AT189: 31.87440978 | AU189: 130.506245
B190: 171 | C190: 131.2739288 | D190: 0.01544357533 | E190: 131.2739317 | F190: 131.2895851 | G190: 0.01565335524 | I190: -0.8736803026 | J190: -0.9925370679 | L190: -0.9597757394 | M190: -0.9597757394 | O190: 6.955792207e-10 | P190: 6.075689601e-10 | Q190: 6.902235433e-10 | S190: 1.124492728e-10 | T190: 3.31194091e-11 | V190: -61.576534 | W190: -69.49043349 | X190: -74.7991742 | Z190: -69.49043349 | AD190: -110 | AE190: =IF('LOS Range'!$H$18>index+$H$25,'LOS Range'!$H$22,AD190+'LOS Range'!$H$26) -> -93.4 | AO190: 23.90956651 | AP190: 131.2739288 | AT190: 31.823466 | AU190: 131.2739288
B191: 172 | C191: 132.0416126 | D191: 0.01535380125 | E191: 132.0416155 | F191: 132.0571778 | G191: 0.01556235812 | I191: -0.8743684142 | J191: -0.9925802853 | L191: -0.9602389336 | M191: -0.9602389336 | O191: 6.875146026e-10 | P191: 6.009993775e-10 | Q191: 6.82252611e-10 | S191: 1.104116013e-10 | T191: 3.238908297e-11 | V191: -61.62718073 | W191: -69.56985292 | X191: -74.89601348 | Z191: -69.56985292 | AD191: -110 | AE191: =IF('LOS Range'!$H$18>index+$H$25,'LOS Range'!$H$22,AD191+'LOS Range'!$H$26) -> -93.4 | AO191: 23.83014708 | AP191: 132.0416126 | AT191: 31.77281927 | AU191: 132.0416126
B192: 173 | C192: 132.8092964 | D192: 0.01526506478 | E192: 132.8092993 | F192: 132.8247717 | G192: 0.0154724128 | I192: -0.8750490706 | J192: -0.992623005 | L192: -0.960694191 | M192: -0.960694191 | O192: 6.795894288e-10 | P192: 5.94535562e-10 | Q192: 6.744189509e-10 | S192: 1.08422568e-10 | T192: 3.167906037e-11 | V192: -61.67753385 | W192: -69.64880311 | X192: -74.99227708 | Z192: -69.64880311 | AD192: -110 | AE192: =IF('LOS Range'!$H$18>index+$H$25,'LOS Range'!$H$22,AD192+'LOS Range'!$H$26) -> -93.4 | AO192: 23.75119689 | AP192: 132.8092964 | AT192: 31.72246615 | AU192: 132.8092964
B193: 174 | C193: 133.5769802 | D193: 0.01517734804 | E193: 133.576983 | F193: 133.5923665 | G193: 0.01538350116 | I193: -0.8757223922 | J193: -0.9926652357 | L193: -0.9611416915 | M193: -0.9611416915 | O193: 6.718005029e-10 | P193: 5.881752603e-10 | Q193: 6.667194291e-10 | S193: 1.064807383e-10 | T193: 3.098866302e-11 | V193: -61.72759675 | W193: -69.72728946 | X193: -75.08797161 | Z193: -69.72728946 | AD193: -110 | AE193: =IF('LOS Range'!$H$18>index+$H$25,'LOS Range'!$H$22,AD193+'LOS Range'!$H$26) -> -93.4 | AO193: 23.67271054 | AP193: 133.5769802 | AT193: 31.67240325 | AU193: 133.5769802
B194: 175 | C194: 134.344664 | D194: 0.01509063354 | E194: 134.3446668 | F194: 134.3599624 | G194: 0.01529560548 | I194: -0.876388497 | J194: -0.9927069857 | L194: -0.9615816099 | M194: -0.9615816099 | O194: 6.641447195e-10 | P194: 5.819162786e-10 | Q194: 6.591510008e-10 | S194: 1.045847275e-10 | T194: 3.031723901e-11 | V194: -61.77737276 | W194: -69.80531731 | X194: -75.18310352 | Z194: -69.80531731 | AD194: -110 | AE194: =IF('LOS Range'!$H$18>index+$H$25,'LOS Range'!$H$22,AD194+'LOS Range'!$H$26) -> -93.4 | AO194: 23.59468269 | AP194: 134.344664 | AT194: 31.62262724 | AU194: 134.344664
B195: 176 | C195: 135.1123478 | D195: 0.01500490421 | E195: 135.1123506 | F195: 135.1275593 | G195: 0.01520870845 | I195: -0.8770475004 | J195: -0.9927482632 | L195: -0.9620141161 | M195: -0.9620141161 | O195: 6.566190613e-10 | P195: 5.75756481e-10 | Q195: 6.517107069e-10 | S195: 1.027331992e-10 | T195: 2.966416167e-11 | V195: -61.82686514 | W195: -69.88289187 | X195: -75.27767921 | Z195: -69.88289187 | AD195: -110 | AE195: =IF('LOS Range'!$H$18>index+$H$25,'LOS Range'!$H$22,AD195+'LOS Range'!$H$26) -> -93.4 | AO195: 23.51710813 | AP195: 135.1123478 | AT195: 31.57313486 | AU195: 135.1123478
B196: 177 | C196: 135.8800316 | D196: 0.01492014335 | E196: 135.8800344 | F196: 135.8951572 | G196: 0.01512279313 | I196: -0.8776995154 | J196: -0.9927890761 | L196: -0.9624393755 | M196: -0.9624393755 | O196: 6.49220596e-10 | P196: 5.696937871e-10 | Q196: 6.443956715e-10 | S196: 1.009248633e-10 | T196: 2.90288284e-11 | V196: -61.87607711 | W196: -69.9600183 | X196: -75.37170492 | Z196: -69.9600183 | AD196: -110 | AE196: =IF('LOS Range'!$H$18>index+$H$25,'LOS Range'!$H$22,AD196+'LOS Range'!$H$26) -> -93.4 | AO196: 23.4399817 | AP196: 135.8800316 | AT196: 31.52392289 | AU196: 135.8800316
B197: 178 | C197: 136.6477154 | D197: 0.01483633466 | E197: 136.6477181 | F197: 136.662756 | G197: 0.015037843 | I197: -0.8783446524 | J197: -0.9928294322 | L197: -0.9628575486 | M197: -0.9628575486 | O197: 6.419464734e-10 | P197: 5.63726171e-10 | Q197: 6.372030988e-10 | S197: 9.915847427e-11 | T197: 2.841065971e-11 | V197: -61.92501183 | W197: -70.03670164 | X197: -75.46518682 | Z197: -70.03670164 | AD197: -110 | AE197: =IF('LOS Range'!$H$18>index+$H$25,'LOS Range'!$H$22,AD197+'LOS Range'!$H$26) -> -93.4 | AO197: 23.36329836 | AP197: 136.6477154 | AT197: 31.47498817 | AU197: 136.6477154
B198: 179 | C198: 137.4153992 | D198: 0.01475346217 | E198: 137.4154019 | F198: 137.4303558 | G198: 0.01495384187 | I198: -0.8789830197 | J198: -0.9928693392 | L198: -0.9632687917 | M198: -0.9632687917 | O198: 6.347939225e-10 | P198: 5.578516591e-10 | Q198: 6.301302707e-10 | S198: 9.743282896e-11 | T198: 2.78090981e-11 | V198: -61.9736724 | W198: -70.11294688 | X198: -75.55813096 | Z198: -70.11294688 | AD198: -110 | AE198: =IF('LOS Range'!$H$18>index+$H$25,'LOS Range'!$H$22,AD198+'LOS Range'!$H$26) -> -93.4 | AO198: 23.28705312 | AP198: 137.4153992 | AT198: 31.4263276 | AU198: 137.4153992
B199: 180 | C199: 138.183083 | D199: 0.01467151028 | E199: 138.1830857 | F199: 138.1979565 | G199: 0.01487077394 | I199: -0.8796147234 | J199: -0.9929088045 | L199: -0.9636732567 | M199: -0.9636732567 | O199: 6.277602494e-10 | P199: 5.520683285e-10 | Q199: 6.231745439e-10 | S199: 9.57467654e-11 | T199: 2.722360721e-11 | V199: -62.02206188 | W199: -70.18875889 | X199: -75.6505433 | Z199: -70.18875889 | AD199: -110 | AE199: =IF('LOS Range'!$H$18>index+$H$25,'LOS Range'!$H$22,AD199+'LOS Range'!$H$26) -> -93.4 | AO199: 23.21124111 | AP199: 138.183083 | AT199: 31.37793812 | AU199: 138.183083
B200: 181 | C200: 138.9507668 | D200: 0.01459046375 | E200: 138.9507695 | F200: 138.9655581 | G200: 0.01478862374 | I200: -0.8802398671 | J200: -0.9929478354 | L200: -0.9640710915 | M200: -0.9640710915 | O200: 6.208428342e-10 | P200: 5.463743057e-10 | Q200: 6.163333478e-10 | S200: 9.409916092e-11 | T200: 2.665367083e-11 | V200: -62.07018327 | W200: -70.26414249 | X200: -75.7424297 | Z200: -70.26414249 | AD200: -110 | AE200: =IF('LOS Range'!$H$18>index+$H$25,'LOS Range'!$H$22,AD200+'LOS Range'!$H$26) -> -93.4 | AO200: 23.13585751 | AP200: 138.9507668 | AT200: 31.32981673 | AU200: 138.9507668
B201: 182 | C201: 139.7184506 | D201: 0.01451030765 | E201: 139.7184533 | F201: 139.7331606 | G201: 0.01470737615 | I201: -0.8808585526 | J201: -0.9929864391 | L201: -0.9644624398 | M201: -0.9644624398 | O201: 6.140391287e-10 | P201: 5.40767765e-10 | Q201: 6.096041819e-10 | S201: 9.248893068e-11 | T201: 2.609879209e-11 | V201: -62.11803953 | W201: -70.33910242 | X201: -75.83379592 | Z201: -70.33910242 | AD201: -110 | AE201: =IF('LOS Range'!$H$18>index+$H$25,'LOS Range'!$H$22,AD201+'LOS Range'!$H$26) -> -93.4 | AO201: 23.06089758 | AP201: 139.7184506 | AT201: 31.28196047 | AU201: 139.7184506
B202: 183 | C202: 140.4861343 | D202: 0.01443102739 | E202: 140.486137 | F202: 140.5007641 | G202: 0.01462701636 | I202: -0.8814708794 | J202: -0.9930246224 | L202: -0.9648474417 | M202: -0.9648474417 | O202: 6.073466543e-10 | P202: 5.352469269e-10 | Q202: 6.029846135e-10 | S202: 9.09150262e-11 | T202: 2.55584926e-11 | V202: -62.16563357 | W202: -70.41364332 | X202: -75.92464764 | Z202: -70.41364332 | AD202: -110 | AE202: =IF('LOS Range'!$H$18>index+$H$25,'LOS Range'!$H$22,AD202+'LOS Range'!$H$26) -> -93.4 | AO202: 22.98635668 | AP202: 140.4861343 | AT202: 31.23436643 | AU202: 140.4861343
... 923 more rows

Sheet Sheet1 (hidden)

Sheet Range Debug Check List
B2: There are many factors that can cause poor range. In order to determine the root cause, please follow the guidelines shown below to debug the root cause:
B4: Calculate the theoretical range:
B6: 1 | C6: Read | D6: "Achieving Optimum Range" describes the important parameters so realistic values are entered in the range spreadsheet.
B8: 2 | C8: Calculate line-of-sight (LOS) range in the spreadsheet with your radio settings
C9: - | D9: output power
C10: - | D10: selection of chip and datarate
C11: - | D11: height of antennas above ground
C12: - | D12: operating frequency
B14: 3 | C14: Are there any objects between the LOS of the transmitter and receiver ?
C15: - | D15: If so, add a suitable absorbtion material that can represent the object blocking the LOS.
B17: 4 | C17: Choose an antenna gain that is realistic for your product
C18: - | D18: For example: achieving 100% efficiency for handheld device at 433 MHz will never occur. Typical efficiency would be -4 dBi for a good 433 MHz antenna for a handheld product.
B20: If the range is not meeting the expected distance then the root cause needs to be determined:
B22: Poor range could be caused by one or more of the following factors:
C23: - | D23: Poor sensitivity in the receiver
C24: - | D24: Poor Tx output power
C25: - | D25: Poor antenna
B27: The measurement methods will depend on what type of equipment is available.
B29: 5 | C29: Measure the conducted sensitivity
C30: - | D30: Disconnect the antenna and perform conducted measurements at the SMA connector or solder a semi-rigid cable at the 50 ohm point.
C31: - | D31: Preferred: use a signal generator that is capable to send data packets. If the signal generator cannot send data packets then just send preamble data.
D32: If a signal generator is not available, then use an EM with attenuation between the EM SMA connector and the antenna connector on the customer board.
D33: - | E33: It is difficult to get accurate numbers using this method since the exact values of output power and attenuation are not known.
D34: - | E34: Some energy will also travel over the air from the EM so placing the receiver in a metal box to shield it will give more accurate results.
C35: - | D35: If the conducted sensitivity is poor:
D36: - | E36: Are the settings the same as the recommended values in SmartRF studio?
D37: - | E37: Is the schematic according to the reference design?
D38: - | E38: Is the layout according to the reference design?
B40: 6 | C40: Measure the conducted output power
C41: - | D41: Disconnect the antenna and perform conducted measurements at the SMA connector or solder a semi-rigid cable at the 50 ohm point.
C42: - | D42: Preffered: use a spectrum analyzer (MSP-SA430 or similar does not have the required accuracy)
C43: - | D43: If a SA is not available, then use an EM or LaunchPad with a SMA connection point.
D44: - | E44: Add a known RF attenuation block between the transmiter's SMA connector and the EM / LaunchPad connector.
D45: - | E45: Use SmartRF Studio and set the EM / LaunchPad in continuous RX, and read the RSSI.
C46: - | D46: If the conducted power is poor:
D47: - | E47: Is the schematic according to the reference design?
D48: - | E48: Is the layout according to the reference design?
B50: 7 | C50: Measure the antenna. If the sensitivity and output power are as expected and the range is poor compared to the theoretical range the antenna efficiency is most likely poor.
C51: - | D51: Preffered: use a network analyzer (VNA) to accurately tune the antenna.
D52: - | E52: Disconnect the radio and add a semi-rigid cable / SMA connector at the 50 ohm point towards the antenna matching network and antenna.
D53: - | E53: Compensate the semi-rigid cable or SMA with port extensions so they are not included in the antenna measurements.
D54: - | E54: Always measure the antenna in the final casing otherwise the tuning will be invalid.
D55: - | E55: Always measure the antenna as would be used in the application. If the device is placed on a metal shelf, then the tuning must be made in a similiar environment.
D56: - | E56: Measure the resonance of the antenna and make sure the matching is better than VSWR 2.
D57: - | E57: If the resonance is not correct or the matching is greater than VSWR 2, then the antenna design needs to be reviewed again.
C58: - | D58: If measurements with a VNA is not possible then use an EM or LaunchPad with an known good antenna.
D59: - | E59: Measure the resonance frequency by sweeping the frequency of the transmitter and measure which frequency the receiver reads the highest RSSI.
C60: - | D60: If the antenna is poor:
D61: - | E61: Is the antenna matching network same as the antenna reference design?
D62: - | E62: Is the antenna layout according to a known antenna reference design?
B64: 8 | C64: If you still are having problems with range then contact TI via the E2E and we can assist furthermore. The inital response will always request for the above measurements in order to debug your case.
